Department family,Entity,Date,Expense type,Expense area,Supplier,Transaction number,Amount,VAT registration number
Department for Business Energy and Industrial Strategy,Intellectual Property Office,21/12/2022,Travel & Subsistence,"Rights, Policy & Enforcement Directorate",Personal expenses,OS000000162,581.82,Not Applicable
Department for Business Energy and Industrial Strategy,Intellectual Property Office,09/12/2022,Travel & Subsistence,"Rights, Policy & Enforcement Directorate",Personal expenses,OS000000152,906.16,Not Applicable
Department for Business Energy and Industrial Strategy,Intellectual Property Office,07/12/2022,Travel & Subsistence,"Rights, Policy & Enforcement Directorate",Personal expenses,OS000000142,897.73,Not Applicable
Department for Business Energy and Industrial Strategy,Intellectual Property Office,09/12/2022,Staff Costs,DDaT Directorate,Acorn Recruitment Ltd,1018793,"12,885.86",Not Applicable
Department for Business Energy and Industrial Strategy,Intellectual Property Office,09/12/2022,Staff Costs,DDaT Directorate,Acorn Recruitment Ltd,1018794,"12,885.86",Not Applicable
Department for Business Energy and Industrial Strategy,Intellectual Property Office,22/12/2022,Pay Costs,PDTM Directorate,Acorn Recruitment Ltd,1019640,708.18,Not Applicable
Department for Business Energy and Industrial Strategy,Intellectual Property Office,13/12/2022,Telecoms,DDaT Directorate,British  Telecom,04842270AC01DEC,"5,293.19",Not Applicable
Department for Business Energy and Industrial Strategy,Intellectual Property Office,23/12/2022,Telecoms,DDaT Directorate,British  Telecom,VP02239170M2522T,"1,348.60",Not Applicable
Department for Business Energy and Industrial Strategy,Intellectual Property Office,21/12/2022,Office Supplies,PDTM Directorate,British Library,7000366357,"2,182.05",Not Applicable
Department for Business Energy and Industrial Strategy,Intellectual Property Office,05/12/2022,Office Supplies,PDTM Directorate,British Library,7000374809,"2,734.90",Not Applicable
Department for Business Energy and Industrial Strategy,Intellectual Property Office,13/12/2022,Miscellaneous Expenses General,DDaT Directorate,British Standards Institution BSI,96169590,"9,735.00",Not Applicable
Department for Business Energy and Industrial Strategy,Intellectual Property Office,13/12/2022,Miscellaneous Expenses General,DDaT Directorate,British Standards Institution BSI,96169592,885.00,Not Applicable
Department for Business Energy and Industrial Strategy,Intellectual Property Office,09/12/2022,Miscellaneous Expenses General,"Rights, Policy & Enforcement Directorate",Capital Law LLP,70005962,"3,535.80",Not Applicable
Department for Business Energy and Industrial Strategy,Intellectual Property Office,13/12/2022,Miscellaneous Expenses General,"Rights, Policy & Enforcement Directorate",City of London Police,4329764,854.06,Not Applicable
Department for Business Energy and Industrial Strategy,Intellectual Property Office,05/12/2022,Staff Costs,"Rights, Policy & Enforcement Directorate",Computeraid Ltd,22698,"2,724.00",Not Applicable
Department for Business Energy and Industrial Strategy,Intellectual Property Office,19/12/2022,Staff Costs,"Rights, Policy & Enforcement Directorate",Computeraid Ltd,22706,834.00,Not Applicable
Department for Business Energy and Industrial Strategy,Intellectual Property Office,07/12/2022,Marketing & Publicity,Strategy Directorate,CPD Certification Service Ltd,13750,"2,574.00",Not Applicable
Department for Business Energy and Industrial Strategy,Intellectual Property Office,19/12/2022,Supporting UK Business,PDTM Directorate,Dehns,498195,"5,000.00",Not Applicable
Department for Business Energy and Industrial Strategy,Intellectual Property Office,06/12/2022,Postage & Delivery Costs,"Rights, Policy & Enforcement Directorate",DHL International (UK) Ltd,BRSR006575929,"5,116.83",Not Applicable
Department for Business Energy and Industrial Strategy,Intellectual Property Office,09/12/2022,Postage & Delivery Costs,"Rights, Policy & Enforcement Directorate",DHL International (UK) Ltd,BRSR006597929,"3,478.23",Not Applicable
Department for Business Energy and Industrial Strategy,Intellectual Property Office,14/12/2022,Postage & Delivery Costs,"Rights, Policy & Enforcement Directorate",DHL International (UK) Ltd,BRSR006616587,"2,794.79",Not Applicable
Department for Business Energy and Industrial Strategy,Intellectual Property Office,30/12/2022,Postage & Delivery Costs,"Rights, Policy & Enforcement Directorate",DHL International (UK) Ltd,BRSR006663709,"8,052.76",Not Applicable
Department for Business Energy and Industrial Strategy,Intellectual Property Office,09/12/2022,Staff Costs,Business & International Policy Directorate,GovNet Communications,SI00000216,820.80,Not Applicable
Department for Business Energy and Industrial Strategy,Intellectual Property Office,01/12/2022,Pay Costs,DDaT Directorate,Hays Specialist Recruitment,1012621164,"4,485.54",Not Applicable
Department for Business Energy and Industrial Strategy,Intellectual Property Office,01/12/2022,Pay Costs,DDaT Directorate,Hays Specialist Recruitment,1012621165,"4,485.54",Not Applicable
Department for Business Energy and Industrial Strategy,Intellectual Property Office,09/12/2022,Pay Costs,DDaT Directorate,Hays Specialist Recruitment,1012628235,"4,635.42",Not Applicable
Department for Business Energy and Industrial Strategy,Intellectual Property Office,22/12/2022,Pay Costs,DDaT Directorate,Hays Specialist Recruitment,1012644014,"4,485.54",Not Applicable
Department for Business Energy and Industrial Strategy,Intellectual Property Office,22/12/2022,Pay Costs,DDaT Directorate,Hays Specialist Recruitment,1012670505,"4,485.54",Not Applicable
Department for Business Energy and Industrial Strategy,Intellectual Property Office,01/12/2022,Information Technology,DDaT Directorate,HFX Ltd,3516,"33,501.92",Not Applicable
Department for Business Energy and Industrial Strategy,Intellectual Property Office,09/12/2022,Accommodation,"Rights, Policy & Enforcement Directorate",HFX Ltd,3552,"27,732.06",Not Applicable
Department for Business Energy and Industrial Strategy,Intellectual Property Office,19/12/2022,Pay Costs,"Rights, Policy & Enforcement Directorate",Home  Office,2620027,"3,670.93",Not Applicable
Department for Business Energy and Industrial Strategy,Intellectual Property Office,19/12/2022,Pay Costs,"Rights, Policy & Enforcement Directorate",Home  Office,2620028,"4,263.35",Not Applicable
Department for Business Energy and Industrial Strategy,Intellectual Property Office,19/12/2022,Pay Costs,"Rights, Policy & Enforcement Directorate",Home  Office,2620029,"5,616.47",Not Applicable
Department for Business Energy and Industrial Strategy,Intellectual Property Office,05/12/2022,Travel & Subsistence,PDTM Directorate,Zenith,310420,509.18,Not Applicable
Department for Business Energy and Industrial Strategy,Intellectual Property Office,16/12/2022,Legal & Hearings,PDTM Directorate,Marten Walsh Cherer Ltd,124900,"2,800.86",Not Applicable
Department for Business Energy and Industrial Strategy,Intellectual Property Office,13/12/2022,Staff Costs,"Rights, Policy & Enforcement Directorate",MyCSP Ltd,19121195,"2,304.00",Not Applicable
Department for Business Energy and Industrial Strategy,Intellectual Property Office,02/12/2022,Postage & Delivery Costs,"Rights, Policy & Enforcement Directorate",Quadient UK Limited,NE9000335-DEC22,"10,000.00",Not Applicable
Department for Business Energy and Industrial Strategy,Intellectual Property Office,07/12/2022,Information Technology,DDaT Directorate,Phoenix Software Ltd,OP/I951807,"6,240.00",Not Applicable
Department for Business Energy and Industrial Strategy,Intellectual Property Office,14/12/2022,Information Technology,DDaT Directorate,Phoenix Software Ltd,OP/I952554,753.60,Not Applicable
Department for Business Energy and Industrial Strategy,Intellectual Property Office,14/12/2022,Information Technology,DDaT Directorate,Phoenix Software Ltd,OP/I952611,"31,847.40",Not Applicable
Department for Business Energy and Industrial Strategy,Intellectual Property Office,19/12/2022,Information Technology,DDaT Directorate,Phoenix Software Ltd,OP/I953028,"107,248.26",Not Applicable
Department for Business Energy and Industrial Strategy,Intellectual Property Office,12/12/2022,Supporting UK Business,PDTM Directorate,Potter Clarkson LLP,1012930,"2,500.00",Not Applicable
Department for Business Energy and Industrial Strategy,Intellectual Property Office,05/12/2022,Supporting UK Business,PDTM Directorate,Potter Clarkson LLP,1013801,"2,500.00",Not Applicable
Department for Business Energy and Industrial Strategy,Intellectual Property Office,13/12/2022,Information Technology,DDaT Directorate,Red Gate Software Ltd,INV00123738,"71,279.96",Not Applicable
Department for Business Energy and Industrial Strategy,Intellectual Property Office,23/12/2022,Postage & Delivery Costs,"Rights, Policy & Enforcement Directorate",Royal Mail,9066304770,"1,317.70",Not Applicable
Department for Business Energy and Industrial Strategy,Intellectual Property Office,09/12/2022,Information Technology,DDaT Directorate,Specialist Computer Centres Plc,OP/N285640,"2,021.29",Not Applicable
Department for Business Energy and Industrial Strategy,Intellectual Property Office,12/12/2022,Other FA at Cost,DDaT Directorate,Specialist Computer Centres Plc,OP/N287336,"117,365.16",Not Applicable
Department for Business Energy and Industrial Strategy,Intellectual Property Office,14/12/2022,Other FA at Cost,DDaT Directorate,Specialist Computer Centres Plc,OP/N290210,"111,397.44",Not Applicable
Department for Business Energy and Industrial Strategy,Intellectual Property Office,30/12/2022,Information Technology,DDaT Directorate,Specialist Computer Centres Plc,OP/N295710,"12,345.14",Not Applicable
Department for Business Energy and Industrial Strategy,Intellectual Property Office,30/12/2022,Information Technology,DDaT Directorate,Specialist Computer Centres Plc,OP/N295711,"11,463.35",Not Applicable
Department for Business Energy and Industrial Strategy,Intellectual Property Office,30/12/2022,Information Technology,PDTM Directorate,Thomson Reuters,6801377358,"77,942.04",Not Applicable
Department for Business Energy and Industrial Strategy,Intellectual Property Office,09/12/2022,Travel & Subsistence,Strategy Directorate,Veezu Ltd T/A Dragon Taxis (Newpor,80373,58.80,Not Applicable
Department for Business Energy and Industrial Strategy,Intellectual Property Office,09/12/2022,Travel & Subsistence,Business & International Policy Directorate,Veezu Ltd T/A Dragon Taxis (Newpor,80373,46.92,Not Applicable
Department for Business Energy and Industrial Strategy,Intellectual Property Office,09/12/2022,Travel & Subsistence,Business & International Policy Directorate,Veezu Ltd T/A Dragon Taxis (Newpor,80373,23.82,Not Applicable
Department for Business Energy and Industrial Strategy,Intellectual Property Office,09/12/2022,Travel & Subsistence,"Rights, Policy & Enforcement Directorate",Veezu Ltd T/A Dragon Taxis (Newpor,80373,13.08,Not Applicable
Department for Business Energy and Industrial Strategy,Intellectual Property Office,09/12/2022,Travel & Subsistence,"Rights, Policy & Enforcement Directorate",Veezu Ltd T/A Dragon Taxis (Newpor,80373,23.76,Not Applicable
Department for Business Energy and Industrial Strategy,Intellectual Property Office,09/12/2022,Travel & Subsistence,Strategy Directorate,Veezu Ltd T/A Dragon Taxis (Newpor,80373,10.68,Not Applicable
Department for Business Energy and Industrial Strategy,Intellectual Property Office,09/12/2022,Travel & Subsistence,Business & International Policy Directorate,Veezu Ltd T/A Dragon Taxis (Newpor,80373,619.32,Not Applicable
Department for Business Energy and Industrial Strategy,Intellectual Property Office,09/12/2022,Travel & Subsistence,"Rights, Policy & Enforcement Directorate",Veezu Ltd T/A Dragon Taxis (Newpor,80373,13.08,Not Applicable
Department for Business Energy and Industrial Strategy,Intellectual Property Office,09/12/2022,Travel & Subsistence,"Rights, Policy & Enforcement Directorate",Veezu Ltd T/A Dragon Taxis (Newpor,80373,20.28,Not Applicable
Department for Business Energy and Industrial Strategy,Intellectual Property Office,05/12/2022,Supporting UK Business,PDTM Directorate,Withers &  Rogers LLP,6854385,"5,000.00",Not Applicable
Department for Business Energy and Industrial Strategy,Intellectual Property Office,09/12/2022,Supporting UK Business,PDTM Directorate,Withers &  Rogers LLP,6854988,"4,368.00",Not Applicable
Department for Business Energy and Industrial Strategy,Intellectual Property Office,12/12/2022,Supporting UK Business,PDTM Directorate,Withers &  Rogers LLP,6856032,"2,500.00",Not Applicable
Department for Business Energy and Industrial Strategy,Intellectual Property Office,19/12/2022,Supporting UK Business,PDTM Directorate,Withers &  Rogers LLP,6856110,"2,500.00",Not Applicable
Department for Business Energy and Industrial Strategy,Intellectual Property Office,09/12/2022,Office Supplies,"Rights, Policy & Enforcement Directorate",Antalis UK Ltd,2622516,"5,613.94",Not Applicable
Department for Business Energy and Industrial Strategy,Intellectual Property Office,23/12/2022,Supporting UK Business,PDTM Directorate,Lincoln IP,15474,"2,500.00",Not Applicable
Department for Business Energy and Industrial Strategy,Intellectual Property Office,21/12/2022,Supporting UK Business,PDTM Directorate,Marks & Clerk LLP,5294142,"2,500.00",Not Applicable
Department for Business Energy and Industrial Strategy,Intellectual Property Office,19/12/2022,Supporting UK Business,PDTM Directorate,Mewburn  Ellis LLP,256735,"2,500.00",Not Applicable
Department for Business Energy and Industrial Strategy,Intellectual Property Office,01/12/2022,Supporting UK Business,PDTM Directorate,Venner Shipley  LLP,440102,"1,400.00",Not Applicable
Department for Business Energy and Industrial Strategy,Intellectual Property Office,01/12/2022,Telecoms,DDaT Directorate,Vodafone Corporate Ltd,102925635,"2,048.35",Not Applicable
Department for Business Energy and Industrial Strategy,Intellectual Property Office,01/12/2022,Supporting UK Business,Business & International Policy Directorate,Foreign & Commonwealth and Development O,20001740,"29,888.48",Not Applicable
Department for Business Energy and Industrial Strategy,Intellectual Property Office,02/12/2022,Supporting UK Business,Business & International Policy Directorate,Foreign & Commonwealth and Development O,20001897,"11,912.00",Not Applicable
Department for Business Energy and Industrial Strategy,Intellectual Property Office,14/12/2022,Supporting UK Business,Business & International Policy Directorate,Foreign & Commonwealth and Development O,20002212,"21,001.59",Not Applicable
Department for Business Energy and Industrial Strategy,Intellectual Property Office,05/12/2022,Information Technology,DDaT Directorate,HORNBILL SERVICE MANAGEMENT LIMITE,HSMLI2200360,"3,083.93",Not Applicable
Department for Business Energy and Industrial Strategy,Intellectual Property Office,06/12/2022,Postage & Delivery Costs,"Rights, Policy & Enforcement Directorate",RICO LOGISTICS LTD,SINRLLFS00399529,"1,887.10",Not Applicable
Department for Business Energy and Industrial Strategy,Intellectual Property Office,14/12/2022,Postage & Delivery Costs,"Rights, Policy & Enforcement Directorate",RICO LOGISTICS LTD,SINRLLFS00400574,"1,700.15",Not Applicable
Department for Business Energy and Industrial Strategy,Intellectual Property Office,30/12/2022,Postage & Delivery Costs,"Rights, Policy & Enforcement Directorate",RICO LOGISTICS LTD,SINRLLFS00401646,"1,269.23",Not Applicable
Department for Business Energy and Industrial Strategy,Intellectual Property Office,30/12/2022,Postage & Delivery Costs,"Rights, Policy & Enforcement Directorate",RICO LOGISTICS LTD,SINRLLFS00402707,"2,116.04",Not Applicable
Department for Business Energy and Industrial Strategy,Intellectual Property Office,23/12/2022,Telecoms,DDaT Directorate,VIRGIN MEDIA,908251-133,"-2,887.99",Not Applicable
Department for Business Energy and Industrial Strategy,Intellectual Property Office,23/12/2022,Telecoms,DDaT Directorate,VIRGIN MEDIA,908251-137,"36,704.10",Not Applicable
Department for Business Energy and Industrial Strategy,Intellectual Property Office,23/12/2022,Telecoms,DDaT Directorate,VIRGIN MEDIA,908251-138,"-32,349.90",Not Applicable
Department for Business Energy and Industrial Strategy,Intellectual Property Office,23/12/2022,Telecoms,DDaT Directorate,VIRGIN MEDIA,908251-150,"1,562.10",Not Applicable
Department for Business Energy and Industrial Strategy,Intellectual Property Office,23/12/2022,Telecoms,DDaT Directorate,VIRGIN MEDIA,908251-151,"-17,907.98",Not Applicable
Department for Business Energy and Industrial Strategy,Intellectual Property Office,23/12/2022,Telecoms,DDaT Directorate,VIRGIN MEDIA,908251-163,"1,562.10",Not Applicable
Department for Business Energy and Industrial Strategy,Intellectual Property Office,23/12/2022,Telecoms,DDaT Directorate,VIRGIN MEDIA,908251-167,"69,314.10",Not Applicable
Department for Business Energy and Industrial Strategy,Intellectual Property Office,08/12/2022,Telecoms,DDaT Directorate,VIRGIN MEDIA,917218-DEC22,587.58,Not Applicable
Department for Business Energy and Industrial Strategy,Intellectual Property Office,08/12/2022,Information Technology,DDaT Directorate,Open Connections Solutions Ltd,330168,"7,776.00",Not Applicable
Department for Business Energy and Industrial Strategy,Intellectual Property Office,19/12/2022,Information Technology,DDaT Directorate,Open Connections Solutions Ltd,330174,"4,665.60",Not Applicable
Department for Business Energy and Industrial Strategy,Intellectual Property Office,14/12/2022,Information Technology,DDaT Directorate,boxxe Ltd,INV0019362,"557,878.30",Not Applicable
Department for Business Energy and Industrial Strategy,Intellectual Property Office,01/12/2022,Supporting UK Business,PDTM Directorate,LAWRIE INTELLECTUAL PROPERTY,124611,"2,500.00",Not Applicable
Department for Business Energy and Industrial Strategy,Intellectual Property Office,14/12/2022,Supporting UK Business,PDTM Directorate,LAWRIE INTELLECTUAL PROPERTY,124663,"2,500.00",Not Applicable
Department for Business Energy and Industrial Strategy,Intellectual Property Office,23/12/2022,Supporting UK Business,PDTM Directorate,STEPHENS SCOWN LLP,188474,"2,500.00",Not Applicable
Department for Business Energy and Industrial Strategy,Intellectual Property Office,06/12/2022,Supporting UK Business,PDTM Directorate,CAMERON INTELLECTUAL PROPERTY LTD,8070-22,"2,500.00",Not Applicable
Department for Business Energy and Industrial Strategy,Intellectual Property Office,05/12/2022,Pay Costs,Finance Directorate,Accountancy Recruitment Wales Ltd,999875,"1,243.20",Not Applicable
Department for Business Energy and Industrial Strategy,Intellectual Property Office,09/12/2022,Pay Costs,Finance Directorate,Accountancy Recruitment Wales Ltd,999876,"1,243.20",Not Applicable
Department for Business Energy and Industrial Strategy,Intellectual Property Office,21/12/2022,Pay Costs,Finance Directorate,Accountancy Recruitment Wales Ltd,999877,"1,243.20",Not Applicable
Department for Business Energy and Industrial Strategy,Intellectual Property Office,22/12/2022,Pay Costs,Finance Directorate,Accountancy Recruitment Wales Ltd,999878,"1,243.20",Not Applicable
Department for Business Energy and Industrial Strategy,Intellectual Property Office,30/12/2022,Accommodation,"Rights, Policy & Enforcement Directorate",EDF ENERGY,13946164,"28,970.00",Not Applicable
Department for Business Energy and Industrial Strategy,Intellectual Property Office,12/12/2022,Information Technology,DDaT Directorate,Bytes Software Services Ltd,1024492,"44,432.64",Not Applicable
Department for Business Energy and Industrial Strategy,Intellectual Property Office,16/12/2022,Pay Costs,"Rights, Policy & Enforcement Directorate",Police & Crime Commissioner Sussex,1800050880,"5,064.00",Not Applicable
Department for Business Energy and Industrial Strategy,Intellectual Property Office,21/12/2022,Staff Costs,"Rights, Policy & Enforcement Directorate",Sodexo Motivation Solutions UK Ltd,3847046,"2,678.25",Not Applicable
Department for Business Energy and Industrial Strategy,Intellectual Property Office,21/12/2022,Telecoms,DDaT Directorate,EE Ltd,1287710640,770.56,Not Applicable
Department for Business Energy and Industrial Strategy,Intellectual Property Office,19/12/2022,Supporting UK Business,PDTM Directorate,MacRoberts LLP,232732,"2,500.00",Not Applicable
Department for Business Energy and Industrial Strategy,Intellectual Property Office,23/12/2022,Accommodation,"Rights, Policy & Enforcement Directorate",PHS Group,69490934,"2,088.00",Not Applicable
Department for Business Energy and Industrial Strategy,Intellectual Property Office,23/12/2022,Accommodation,"Rights, Policy & Enforcement Directorate",PHS Group,69490935,"3,372.00",Not Applicable
Department for Business Energy and Industrial Strategy,Intellectual Property Office,30/12/2022,Office Machinery,"Rights, Policy & Enforcement Directorate",Sharp Business Systems,8071968299,"2,953.94",Not Applicable
Department for Business Energy and Industrial Strategy,Intellectual Property Office,30/12/2022,Office Machinery,"Rights, Policy & Enforcement Directorate",Sharp Business Systems,8079031899,"-2,760.00",Not Applicable
Department for Business Energy and Industrial Strategy,Intellectual Property Office,22/12/2022,Miscellaneous Expenses General,PDTM Directorate,FCDO Services,70003755,637.50,Not Applicable
Department for Business Energy and Industrial Strategy,Intellectual Property Office,19/12/2022,Supporting UK Business,PDTM Directorate,Murgitroyd & Company Ltd,68285Y-22,"1,228.20",Not Applicable
Department for Business Energy and Industrial Strategy,Intellectual Property Office,05/12/2022,Miscellaneous Expenses General,PDTM Directorate,European Patent Office,40309113,"124,032.52",Not Applicable
Department for Business Energy and Industrial Strategy,Intellectual Property Office,05/12/2022,Information Technology,PDTM Directorate,COEXYA SAS,F220800120,"29,025.00",Not Applicable
Department for Business Energy and Industrial Strategy,Intellectual Property Office,05/12/2022,Information Technology,PDTM Directorate,COEXYA SAS,F220900028,"29,025.00",Not Applicable
Department for Business Energy and Industrial Strategy,Intellectual Property Office,05/12/2022,Information Technology,PDTM Directorate,COEXYA SAS,F220900030,933.75,Not Applicable
Department for Business Energy and Industrial Strategy,Intellectual Property Office,09/12/2022,Miscellaneous Expenses General,"Rights, Policy & Enforcement Directorate",Insight Health Screening,IHS-INV-2997,"3,625.00",Not Applicable
Department for Business Energy and Industrial Strategy,Intellectual Property Office,12/12/2022,Accommodation,"Rights, Policy & Enforcement Directorate",SIG TRADING LTD,7.0336E+11,646.04,Not Applicable
Department for Business Energy and Industrial Strategy,Intellectual Property Office,12/12/2022,Accommodation,"Rights, Policy & Enforcement Directorate",SIG TRADING LTD,7.0336E+11,"1,365.44",Not Applicable
Department for Business Energy and Industrial Strategy,Intellectual Property Office,13/12/2022,Accommodation,"Rights, Policy & Enforcement Directorate",SIG TRADING LTD,7.0336E+11,"5,026.93",Not Applicable
Department for Business Energy and Industrial Strategy,Intellectual Property Office,13/12/2022,Accommodation,"Rights, Policy & Enforcement Directorate",SIG TRADING LTD,7.0336E+11,552.00,Not Applicable
Department for Business Energy and Industrial Strategy,Intellectual Property Office,13/12/2022,Accommodation,"Rights, Policy & Enforcement Directorate",SIG TRADING LTD,7.0336E+11,"4,531.30",Not Applicable
Department for Business Energy and Industrial Strategy,Intellectual Property Office,16/12/2022,Supporting UK Business,PDTM Directorate,Scintilla,INV-03600,"2,500.00",Not Applicable
Department for Business Energy and Industrial Strategy,Intellectual Property Office,12/12/2022,Supporting UK Business,PDTM Directorate,Scintilla,INV-03621,"2,500.00",Not Applicable
Department for Business Energy and Industrial Strategy,Intellectual Property Office,13/12/2022,Office Supplies,PDTM Directorate,Elsevier BV,M572442,989.42,Not Applicable
Department for Business Energy and Industrial Strategy,Intellectual Property Office,13/12/2022,Information Technology,PDTM Directorate,Elsevier BV,SD574623,"21,577.67",Not Applicable
Department for Business Energy and Industrial Strategy,Intellectual Property Office,30/12/2022,Information Technology,PDTM Directorate,Questback UK Ltd,4410046,"8,652.00",Not Applicable
Department for Business Energy and Industrial Strategy,Intellectual Property Office,05/12/2022,Supporting UK Business,PDTM Directorate,Forresters clear direction,KBO-5871022,"2,500.00",Not Applicable
Department for Business Energy and Industrial Strategy,Intellectual Property Office,19/12/2022,Supporting UK Business,PDTM Directorate,MBM Commercial LLP,31816,"2,500.00",Not Applicable
Department for Business Energy and Industrial Strategy,Intellectual Property Office,30/12/2022,Supporting UK Business,PDTM Directorate,MBM Commercial LLP,31858,"4,998.00",Not Applicable
Department for Business Energy and Industrial Strategy,Intellectual Property Office,14/12/2022,Information Technology,Projects,People for Research Ltd,12294,"1,862.40",Not Applicable
Department for Business Energy and Industrial Strategy,Intellectual Property Office,21/12/2022,Information Technology,Projects,People for Research Ltd,12302,"2,483.20",Not Applicable
Department for Business Energy and Industrial Strategy,Intellectual Property Office,01/12/2022,Information Technology,PDTM Directorate,American Chemical Society,1168158,"1,856.25",Not Applicable
Department for Business Energy and Industrial Strategy,Intellectual Property Office,01/12/2022,Supporting UK Business,PDTM Directorate,Abel & Imray,502267,"2,500.00",Not Applicable
Department for Business Energy and Industrial Strategy,Intellectual Property Office,12/12/2022,Supporting UK Business,PDTM Directorate,Ellis IP Limited,4926,"2,500.00",Not Applicable
Department for Business Energy and Industrial Strategy,Intellectual Property Office,07/12/2022,Staff Costs,PDTM Directorate,Ernst & Young LLP,GB01G000362511,928.80,Not Applicable
Department for Business Energy and Industrial Strategy,Intellectual Property Office,19/12/2022,Staff Costs,"Rights, Policy & Enforcement Directorate",Ernst & Young LLP,GB01G000365995,"17,687.70",Not Applicable
Department for Business Energy and Industrial Strategy,Intellectual Property Office,19/12/2022,Staff Costs,Business & International Policy Directorate,Ernst & Young LLP,GB01G000365995,"17,687.70",Not Applicable
Department for Business Energy and Industrial Strategy,Intellectual Property Office,22/12/2022,Staff Costs,"Rights, Policy & Enforcement Directorate",Ernst & Young LLP,GB01G000367899,"19,012.54",Not Applicable
Department for Business Energy and Industrial Strategy,Intellectual Property Office,16/12/2022,Supporting UK Business,PDTM Directorate,Ipentus Limited,IPOO17,"5,000.00",Not Applicable
Department for Business Energy and Industrial Strategy,Intellectual Property Office,30/12/2022,Staff Costs,DDaT Directorate,KPMG LLP (CSL),5502544307,"4,832.14",Not Applicable
Department for Business Energy and Industrial Strategy,Intellectual Property Office,30/12/2022,Staff Costs,Business & International Policy Directorate,KPMG LLP (CSL),5502546013,"4,800.00",Not Applicable
Department for Business Energy and Industrial Strategy,Intellectual Property Office,05/12/2022,Staff Costs,"Rights, Policy & Enforcement Directorate",Korn Ferry UK limited,1195078959,"5,989.55",Not Applicable
Department for Business Energy and Industrial Strategy,Intellectual Property Office,01/12/2022,Supporting UK Business,PDTM Directorate,Hutchinson IP Ltd,5601,"3,120.00",Not Applicable
Department for Business Energy and Industrial Strategy,Intellectual Property Office,09/12/2022,Information Technology,DDaT Directorate,Equal Experts UK Ltd,INV-11513,"15,000.00",Not Applicable
Department for Business Energy and Industrial Strategy,Intellectual Property Office,23/12/2022,Pay Costs,Strategy Directorate,"Department Business, Energy & Industrial",6.1511E+11,"3,994.65",Not Applicable
Department for Business Energy and Industrial Strategy,Intellectual Property Office,02/12/2022,Office Supplies,"Rights, Policy & Enforcement Directorate",South East Drawing Office Ltd,32534,626.23,Not Applicable
Department for Business Energy and Industrial Strategy,Intellectual Property Office,30/12/2022,Office Supplies,"Rights, Policy & Enforcement Directorate",South East Drawing Office Ltd,32825,844.68,Not Applicable
Department for Business Energy and Industrial Strategy,Intellectual Property Office,21/12/2022,Supporting UK Business,PDTM Directorate,IP21 LTD,29422,"4,999.20",Not Applicable
Department for Business Energy and Industrial Strategy,Intellectual Property Office,14/12/2022,Supporting UK Business,PDTM Directorate,IP21 LTD,29471,"4,999.20",Not Applicable
Department for Business Energy and Industrial Strategy,Intellectual Property Office,30/12/2022,Supporting UK Business,PDTM Directorate,Boult Wade Tennant,1207437,"2,500.00",Not Applicable
Department for Business Energy and Industrial Strategy,Intellectual Property Office,23/12/2022,Accommodation,"Rights, Policy & Enforcement Directorate",Shred It Limited,9505618763,"1,102.50",Not Applicable
Department for Business Energy and Industrial Strategy,Intellectual Property Office,23/12/2022,Accommodation,"Rights, Policy & Enforcement Directorate",Shred It Limited,9505624388,"1,911.00",Not Applicable
Department for Business Energy and Industrial Strategy,Intellectual Property Office,07/12/2022,Supporting UK Business,PDTM Directorate,Mathys & Squire IP,464352,"2,500.00",Not Applicable
Department for Business Energy and Industrial Strategy,Intellectual Property Office,14/12/2022,Supporting UK Business,PDTM Directorate,Mathys & Squire IP,464841,"5,000.00",Not Applicable
Department for Business Energy and Industrial Strategy,Intellectual Property Office,01/12/2022,Miscellaneous Expenses General,Business & International Policy Directorate,Vinci Construction UK Ltd,22110433,76.80,Not Applicable
Department for Business Energy and Industrial Strategy,Intellectual Property Office,01/12/2022,Miscellaneous Expenses General,Strategy Directorate,Vinci Construction UK Ltd,22110433,269.76,Not Applicable
Department for Business Energy and Industrial Strategy,Intellectual Property Office,01/12/2022,Miscellaneous Expenses General,Projects,Vinci Construction UK Ltd,22110433,275.22,Not Applicable
Department for Business Energy and Industrial Strategy,Intellectual Property Office,01/12/2022,Miscellaneous Expenses General,DDaT Directorate,Vinci Construction UK Ltd,22110433,114.96,Not Applicable
Department for Business Energy and Industrial Strategy,Intellectual Property Office,01/12/2022,Miscellaneous Expenses General,"Rights, Policy & Enforcement Directorate",Vinci Construction UK Ltd,22110433,620.64,Not Applicable
Department for Business Energy and Industrial Strategy,Intellectual Property Office,01/12/2022,Miscellaneous Expenses General,PDTM Directorate,Vinci Construction UK Ltd,22110433,210.78,Not Applicable
Department for Business Energy and Industrial Strategy,Intellectual Property Office,01/12/2022,Miscellaneous Expenses General,PDTM Directorate,Vinci Construction UK Ltd,22110433,156.37,Not Applicable
Department for Business Energy and Industrial Strategy,Intellectual Property Office,01/12/2022,Miscellaneous Expenses General,"Rights, Policy & Enforcement Directorate",Vinci Construction UK Ltd,22110433,82.56,Not Applicable
Department for Business Energy and Industrial Strategy,Intellectual Property Office,01/12/2022,Miscellaneous Expenses General,PDTM Directorate,Vinci Construction UK Ltd,22110433,156.38,Not Applicable
Department for Business Energy and Industrial Strategy,Intellectual Property Office,01/12/2022,Miscellaneous Expenses General,Projects,Vinci Construction UK Ltd,22110433,498.60,Not Applicable
Department for Business Energy and Industrial Strategy,Intellectual Property Office,01/12/2022,Miscellaneous Expenses General,DDaT Directorate,Vinci Construction UK Ltd,22110433,92.70,Not Applicable
Department for Business Energy and Industrial Strategy,Intellectual Property Office,01/12/2022,Miscellaneous Expenses General,Projects,Vinci Construction UK Ltd,22110433,89.10,Not Applicable
Department for Business Energy and Industrial Strategy,Intellectual Property Office,01/12/2022,Miscellaneous Expenses General,"Rights, Policy & Enforcement Directorate",Vinci Construction UK Ltd,22110433,232.20,Not Applicable
Department for Business Energy and Industrial Strategy,Intellectual Property Office,01/12/2022,Miscellaneous Expenses General,Business & International Policy Directorate,Vinci Construction UK Ltd,22110433,42.42,Not Applicable
Department for Business Energy and Industrial Strategy,Intellectual Property Office,01/12/2022,Miscellaneous Expenses General,"Rights, Policy & Enforcement Directorate",Vinci Construction UK Ltd,22110433,56.82,Not Applicable
Department for Business Energy and Industrial Strategy,Intellectual Property Office,01/12/2022,Miscellaneous Expenses General,PDTM Directorate,Vinci Construction UK Ltd,22110433,"1,078.20",Not Applicable
Department for Business Energy and Industrial Strategy,Intellectual Property Office,01/12/2022,Miscellaneous Expenses General,"Rights, Policy & Enforcement Directorate",Vinci Construction UK Ltd,22110433,15.48,Not Applicable
Department for Business Energy and Industrial Strategy,Intellectual Property Office,01/12/2022,Miscellaneous Expenses General,PDTM Directorate,Vinci Construction UK Ltd,22110433,156.38,Not Applicable
Department for Business Energy and Industrial Strategy,Intellectual Property Office,01/12/2022,Miscellaneous Expenses General,PDTM Directorate,Vinci Construction UK Ltd,22110433,244.20,Not Applicable
Department for Business Energy and Industrial Strategy,Intellectual Property Office,07/12/2022,Supporting UK Business,PDTM Directorate,CMS Cameron MsKenna LLP Office A/C,1000-0072984,"2,500.00",Not Applicable
Department for Business Energy and Industrial Strategy,Intellectual Property Office,05/12/2022,Supporting UK Business,PDTM Directorate,Keltie LLP,172772,"5,000.00",Not Applicable
Department for Business Energy and Industrial Strategy,Intellectual Property Office,23/12/2022,Supporting UK Business,PDTM Directorate,Keltie LLP,173359,"2,500.00",Not Applicable
Department for Business Energy and Industrial Strategy,Intellectual Property Office,13/12/2022,Information Technology,DDaT Directorate,8X8 Solutions,3660106,"2,730.02",Not Applicable
Department for Business Energy and Industrial Strategy,Intellectual Property Office,19/12/2022,Supporting UK Business,PDTM Directorate,HGF Limited,712049,636.00,Not Applicable
Department for Business Energy and Industrial Strategy,Intellectual Property Office,19/12/2022,Supporting UK Business,PDTM Directorate,HGF Limited,712060,636.00,Not Applicable
Department for Business Energy and Industrial Strategy,Intellectual Property Office,19/12/2022,Supporting UK Business,PDTM Directorate,HGF Limited,715256,636.00,Not Applicable
Department for Business Energy and Industrial Strategy,Intellectual Property Office,09/12/2022,Staff Costs,Strategy Directorate,Chartered Institute of Public Relations.,1077858-2023,"4,814.00",Not Applicable
Department for Business Energy and Industrial Strategy,Intellectual Property Office,16/12/2022,Supporting UK Business,PDTM Directorate,EIP Europe LLP,114017,"2,500.00",Not Applicable
Department for Business Energy and Industrial Strategy,Intellectual Property Office,12/12/2022,Supporting UK Business,PDTM Directorate,Definition IP Ltd,INV-003070,"2,500.00",Not Applicable
Department for Business Energy and Industrial Strategy,Intellectual Property Office,13/12/2022,Telecoms,DDaT Directorate,Gamma Telecom Ltd,GA1694206,"2,593.31",Not Applicable
Department for Business Energy and Industrial Strategy,Intellectual Property Office,05/12/2022,Supporting UK Business,PDTM Directorate,Barker Brettell LLP,466705,"4,500.00",Not Applicable
Department for Business Energy and Industrial Strategy,Intellectual Property Office,01/12/2022,Information Technology,DDaT Directorate,BrowserStack Inc,INV01361492,"8,374.98",Not Applicable
Department for Business Energy and Industrial Strategy,Intellectual Property Office,05/12/2022,Staff Costs,"Rights, Policy & Enforcement Directorate",Tracy Mountain,80,"1,200.00",Not Applicable
Department for Business Energy and Industrial Strategy,Intellectual Property Office,13/12/2022,Staff Costs,"Rights, Policy & Enforcement Directorate",Tracy Mountain,81,600.00,Not Applicable
Department for Business Energy and Industrial Strategy,Intellectual Property Office,19/12/2022,Staff Costs,"Rights, Policy & Enforcement Directorate",Tracy Mountain,82,600.00,Not Applicable
Department for Business Energy and Industrial Strategy,Intellectual Property Office,19/12/2022,Other FA at Cost,Projects,Deloitte LLP,8003138267,"145,800.00",Not Applicable
Department for Business Energy and Industrial Strategy,Intellectual Property Office,19/12/2022,Other FA at Cost,Projects,Deloitte LLP,8003138268,"2,717.96",Not Applicable
Department for Business Energy and Industrial Strategy,Intellectual Property Office,19/12/2022,Other FA at Cost,Projects,Deloitte LLP,8003138269,"235,665.60",Not Applicable
Department for Business Energy and Industrial Strategy,Intellectual Property Office,19/12/2022,Other FA at Cost,Projects,Deloitte LLP,8003138270,"34,179.60",Not Applicable
Department for Business Energy and Industrial Strategy,Intellectual Property Office,19/12/2022,Information Technology,Projects,Deloitte LLP,8003138495,"1,630,794.00",Not Applicable
Department for Business Energy and Industrial Strategy,Intellectual Property Office,09/12/2022,Supporting UK Business,PDTM Directorate,Sirius IP,112022KEL01,"4,920.00",Not Applicable
Department for Business Energy and Industrial Strategy,Intellectual Property Office,23/12/2022,Supporting UK Business,PDTM Directorate,Sirius IP,122022GHSIAU01,"2,500.00",Not Applicable
Department for Business Energy and Industrial Strategy,Intellectual Property Office,30/12/2022,Supporting UK Business,PDTM Directorate,Sirius IP,122022IACGWL01,"5,000.00",Not Applicable
Department for Business Energy and Industrial Strategy,Intellectual Property Office,02/12/2022,Information Technology,Finance Directorate,Atamis Limited,A2020-1331,"33,936.00",Not Applicable
Department for Business Energy and Industrial Strategy,Intellectual Property Office,02/12/2022,Information Technology,Finance Directorate,Atamis Limited,A2020-1383,"-8,526.00",Not Applicable
Department for Business Energy and Industrial Strategy,Intellectual Property Office,01/12/2022,Pay Costs,PDTM Directorate,Alexander Mann Solutions Limited,2690501,556.85,Not Applicable
Department for Business Energy and Industrial Strategy,Intellectual Property Office,08/12/2022,Pay Costs,Projects,Alexander Mann Solutions Limited,2695103,"1,760.30",Not Applicable
Department for Business Energy and Industrial Strategy,Intellectual Property Office,08/12/2022,Pay Costs,DDaT Directorate,Alexander Mann Solutions Limited,2695104,"3,272.35",Not Applicable
Department for Business Energy and Industrial Strategy,Intellectual Property Office,08/12/2022,Pay Costs,DDaT Directorate,Alexander Mann Solutions Limited,2695105,"4,090.44",Not Applicable
Department for Business Energy and Industrial Strategy,Intellectual Property Office,08/12/2022,Pay Costs,Projects,Alexander Mann Solutions Limited,2695106,"2,999.70",Not Applicable
Department for Business Energy and Industrial Strategy,Intellectual Property Office,08/12/2022,Pay Costs,DDaT Directorate,Alexander Mann Solutions Limited,2695107,"4,090.44",Not Applicable
Department for Business Energy and Industrial Strategy,Intellectual Property Office,08/12/2022,Pay Costs,Projects,Alexander Mann Solutions Limited,2695108,"4,410.42",Not Applicable
Department for Business Energy and Industrial Strategy,Intellectual Property Office,08/12/2022,Pay Costs,PDTM Directorate,Alexander Mann Solutions Limited,2695109,645.30,Not Applicable
Department for Business Energy and Industrial Strategy,Intellectual Property Office,08/12/2022,Pay Costs,PDTM Directorate,Alexander Mann Solutions Limited,2695110,566.28,Not Applicable
Department for Business Energy and Industrial Strategy,Intellectual Property Office,08/12/2022,Pay Costs,PDTM Directorate,Alexander Mann Solutions Limited,2695111,698.41,Not Applicable
Department for Business Energy and Industrial Strategy,Intellectual Property Office,08/12/2022,Pay Costs,PDTM Directorate,Alexander Mann Solutions Limited,2695112,556.85,Not Applicable
Department for Business Energy and Industrial Strategy,Intellectual Property Office,08/12/2022,Pay Costs,DDaT Directorate,Alexander Mann Solutions Limited,2695114,"1,638.14",Not Applicable
Department for Business Energy and Industrial Strategy,Intellectual Property Office,08/12/2022,Pay Costs,PDTM Directorate,Alexander Mann Solutions Limited,2695115,"1,264.60",Not Applicable
Department for Business Energy and Industrial Strategy,Intellectual Property Office,08/12/2022,Pay Costs,PDTM Directorate,Alexander Mann Solutions Limited,2695117,637.07,Not Applicable
Department for Business Energy and Industrial Strategy,Intellectual Property Office,08/12/2022,Pay Costs,DDaT Directorate,Alexander Mann Solutions Limited,2695119,"7,135.32",Not Applicable
Department for Business Energy and Industrial Strategy,Intellectual Property Office,08/12/2022,Pay Costs,DDaT Directorate,Alexander Mann Solutions Limited,2695120,"4,410.42",Not Applicable
Department for Business Energy and Industrial Strategy,Intellectual Property Office,08/12/2022,Pay Costs,PDTM Directorate,Alexander Mann Solutions Limited,2695121,698.41,Not Applicable
Department for Business Energy and Industrial Strategy,Intellectual Property Office,08/12/2022,Pay Costs,PDTM Directorate,Alexander Mann Solutions Limited,2695122,618.30,Not Applicable
Department for Business Energy and Industrial Strategy,Intellectual Property Office,08/12/2022,Pay Costs,PDTM Directorate,Alexander Mann Solutions Limited,2695123,566.28,Not Applicable
Department for Business Energy and Industrial Strategy,Intellectual Property Office,08/12/2022,Pay Costs,PDTM Directorate,Alexander Mann Solutions Limited,2695124,707.86,Not Applicable
Department for Business Energy and Industrial Strategy,Intellectual Property Office,08/12/2022,Pay Costs,PDTM Directorate,Alexander Mann Solutions Limited,2695125,698.41,Not Applicable
Department for Business Energy and Industrial Strategy,Intellectual Property Office,08/12/2022,Pay Costs,PDTM Directorate,Alexander Mann Solutions Limited,2695126,566.28,Not Applicable
Department for Business Energy and Industrial Strategy,Intellectual Property Office,08/12/2022,Pay Costs,Projects,Alexander Mann Solutions Limited,2695127,"4,311.54",Not Applicable
Department for Business Energy and Industrial Strategy,Intellectual Property Office,08/12/2022,Pay Costs,PDTM Directorate,Alexander Mann Solutions Limited,2695128,585.16,Not Applicable
Department for Business Energy and Industrial Strategy,Intellectual Property Office,08/12/2022,Pay Costs,DDaT Directorate,Alexander Mann Solutions Limited,2695130,"3,465.30",Not Applicable
Department for Business Energy and Industrial Strategy,Intellectual Property Office,08/12/2022,Pay Costs,DDaT Directorate,Alexander Mann Solutions Limited,2695131,"5,040.48",Not Applicable
Department for Business Energy and Industrial Strategy,Intellectual Property Office,08/12/2022,Pay Costs,PDTM Directorate,Alexander Mann Solutions Limited,2695132,"1,125.92",Not Applicable
Department for Business Energy and Industrial Strategy,Intellectual Property Office,08/12/2022,Pay Costs,PDTM Directorate,Alexander Mann Solutions Limited,2695133,636.70,Not Applicable
Department for Business Energy and Industrial Strategy,Intellectual Property Office,08/12/2022,Pay Costs,DDaT Directorate,Alexander Mann Solutions Limited,2695134,"3,216.12",Not Applicable
Department for Business Energy and Industrial Strategy,Intellectual Property Office,08/12/2022,Pay Costs,DDaT Directorate,Alexander Mann Solutions Limited,2695135,"2,710.08",Not Applicable
Department for Business Energy and Industrial Strategy,Intellectual Property Office,08/12/2022,Pay Costs,Projects,Alexander Mann Solutions Limited,2695136,"3,465.30",Not Applicable
Department for Business Energy and Industrial Strategy,Intellectual Property Office,08/12/2022,Pay Costs,DDaT Directorate,Alexander Mann Solutions Limited,2695137,"5,040.48",Not Applicable
Department for Business Energy and Industrial Strategy,Intellectual Property Office,08/12/2022,Pay Costs,PDTM Directorate,Alexander Mann Solutions Limited,2695138,698.41,Not Applicable
Department for Business Energy and Industrial Strategy,Intellectual Property Office,08/12/2022,Pay Costs,PDTM Directorate,Alexander Mann Solutions Limited,2695139,698.41,Not Applicable
Department for Business Energy and Industrial Strategy,Intellectual Property Office,08/12/2022,Pay Costs,PDTM Directorate,Alexander Mann Solutions Limited,2695141,698.41,Not Applicable
Department for Business Energy and Industrial Strategy,Intellectual Property Office,08/12/2022,Pay Costs,PDTM Directorate,Alexander Mann Solutions Limited,2695142,698.41,Not Applicable
Department for Business Energy and Industrial Strategy,Intellectual Property Office,08/12/2022,Pay Costs,PDTM Directorate,Alexander Mann Solutions Limited,2695143,698.41,Not Applicable
Department for Business Energy and Industrial Strategy,Intellectual Property Office,08/12/2022,Pay Costs,PDTM Directorate,Alexander Mann Solutions Limited,2695144,537.97,Not Applicable
Department for Business Energy and Industrial Strategy,Intellectual Property Office,08/12/2022,Pay Costs,PDTM Directorate,Alexander Mann Solutions Limited,2695146,698.41,Not Applicable
Department for Business Energy and Industrial Strategy,Intellectual Property Office,08/12/2022,Pay Costs,DDaT Directorate,Alexander Mann Solutions Limited,2695147,"3,465.30",Not Applicable
Department for Business Energy and Industrial Strategy,Intellectual Property Office,08/12/2022,Pay Costs,PDTM Directorate,Alexander Mann Solutions Limited,2695148,610.06,Not Applicable
Department for Business Energy and Industrial Strategy,Intellectual Property Office,08/12/2022,Pay Costs,PDTM Directorate,Alexander Mann Solutions Limited,2695149,698.41,Not Applicable
Department for Business Energy and Industrial Strategy,Intellectual Property Office,08/12/2022,Pay Costs,PDTM Directorate,Alexander Mann Solutions Limited,2695150,698.41,Not Applicable
Department for Business Energy and Industrial Strategy,Intellectual Property Office,08/12/2022,Pay Costs,CEO/SEC Directorate,Alexander Mann Solutions Limited,2695151,736.16,Not Applicable
Department for Business Energy and Industrial Strategy,Intellectual Property Office,08/12/2022,Pay Costs,Projects,Alexander Mann Solutions Limited,2695152,"3,350.64",Not Applicable
Department for Business Energy and Industrial Strategy,Intellectual Property Office,08/12/2022,Pay Costs,DDaT Directorate,Alexander Mann Solutions Limited,2695153,"2,440.62",Not Applicable
Department for Business Energy and Industrial Strategy,Intellectual Property Office,08/12/2022,Pay Costs,Projects,Alexander Mann Solutions Limited,2695155,"3,465.30",Not Applicable
Department for Business Energy and Industrial Strategy,Intellectual Property Office,08/12/2022,Pay Costs,Finance Directorate,Alexander Mann Solutions Limited,2695156,693.70,Not Applicable
Department for Business Energy and Industrial Strategy,Intellectual Property Office,08/12/2022,Pay Costs,"Rights, Policy & Enforcement Directorate",Alexander Mann Solutions Limited,2695157,698.41,Not Applicable
Department for Business Energy and Industrial Strategy,Intellectual Property Office,08/12/2022,Pay Costs,DDaT Directorate,Alexander Mann Solutions Limited,2695158,"3,780.36",Not Applicable
Department for Business Energy and Industrial Strategy,Intellectual Property Office,08/12/2022,Pay Costs,DDaT Directorate,Alexander Mann Solutions Limited,2695159,"6,330.48",Not Applicable
Department for Business Energy and Industrial Strategy,Intellectual Property Office,08/12/2022,Pay Costs,DDaT Directorate,Alexander Mann Solutions Limited,2695160,"2,772.24",Not Applicable
Department for Business Energy and Industrial Strategy,Intellectual Property Office,08/12/2022,Pay Costs,DDaT Directorate,Alexander Mann Solutions Limited,2695161,"3,448.26",Not Applicable
Department for Business Energy and Industrial Strategy,Intellectual Property Office,08/12/2022,Pay Costs,DDaT Directorate,Alexander Mann Solutions Limited,2695162,"2,520.24",Not Applicable
Department for Business Energy and Industrial Strategy,Intellectual Property Office,08/12/2022,Pay Costs,DDaT Directorate,Alexander Mann Solutions Limited,2695163,"2,956.46",Not Applicable
Department for Business Energy and Industrial Strategy,Intellectual Property Office,08/12/2022,Pay Costs,DDaT Directorate,Alexander Mann Solutions Limited,2695164,"14,782.46",Not Applicable
Department for Business Energy and Industrial Strategy,Intellectual Property Office,08/12/2022,Pay Costs,DDaT Directorate,Alexander Mann Solutions Limited,2695165,"4,095.36",Not Applicable
Department for Business Energy and Industrial Strategy,Intellectual Property Office,08/12/2022,Pay Costs,Finance Directorate,Alexander Mann Solutions Limited,2695166,698.41,Not Applicable
Department for Business Energy and Industrial Strategy,Intellectual Property Office,08/12/2022,Pay Costs,DDaT Directorate,Alexander Mann Solutions Limited,2695167,"3,024.30",Not Applicable
Department for Business Energy and Industrial Strategy,Intellectual Property Office,14/12/2022,Pay Costs,PDTM Directorate,Alexander Mann Solutions Limited,2699910,698.41,Not Applicable
Department for Business Energy and Industrial Strategy,Intellectual Property Office,14/12/2022,Pay Costs,DDaT Directorate,Alexander Mann Solutions Limited,2699911,"4,090.44",Not Applicable
Department for Business Energy and Industrial Strategy,Intellectual Property Office,14/12/2022,Pay Costs,Projects,Alexander Mann Solutions Limited,2699912,"2,999.70",Not Applicable
Department for Business Energy and Industrial Strategy,Intellectual Property Office,14/12/2022,Pay Costs,DDaT Directorate,Alexander Mann Solutions Limited,2699913,"4,090.44",Not Applicable
Department for Business Energy and Industrial Strategy,Intellectual Property Office,14/12/2022,Pay Costs,Projects,Alexander Mann Solutions Limited,2699914,"4,410.42",Not Applicable
Department for Business Energy and Industrial Strategy,Intellectual Property Office,14/12/2022,Pay Costs,PDTM Directorate,Alexander Mann Solutions Limited,2699915,645.30,Not Applicable
Department for Business Energy and Industrial Strategy,Intellectual Property Office,14/12/2022,Pay Costs,PDTM Directorate,Alexander Mann Solutions Limited,2699916,566.28,Not Applicable
Department for Business Energy and Industrial Strategy,Intellectual Property Office,14/12/2022,Pay Costs,PDTM Directorate,Alexander Mann Solutions Limited,2699917,556.85,Not Applicable
Department for Business Energy and Industrial Strategy,Intellectual Property Office,14/12/2022,Pay Costs,PDTM Directorate,Alexander Mann Solutions Limited,2699918,698.41,Not Applicable
Department for Business Energy and Industrial Strategy,Intellectual Property Office,14/12/2022,Pay Costs,PDTM Directorate,Alexander Mann Solutions Limited,2699919,931.74,Not Applicable
Department for Business Energy and Industrial Strategy,Intellectual Property Office,14/12/2022,Pay Costs,PDTM Directorate,Alexander Mann Solutions Limited,2699920,698.41,Not Applicable
Department for Business Energy and Industrial Strategy,Intellectual Property Office,14/12/2022,Pay Costs,PDTM Directorate,Alexander Mann Solutions Limited,2699922,641.78,Not Applicable
Department for Business Energy and Industrial Strategy,Intellectual Property Office,14/12/2022,Pay Costs,DDaT Directorate,Alexander Mann Solutions Limited,2699924,"3,567.66",Not Applicable
Department for Business Energy and Industrial Strategy,Intellectual Property Office,13/12/2022,Pay Costs,DDaT Directorate,Alexander Mann Solutions Limited,2699925,"4,410.42",Not Applicable
Department for Business Energy and Industrial Strategy,Intellectual Property Office,14/12/2022,Pay Costs,PDTM Directorate,Alexander Mann Solutions Limited,2699926,556.85,Not Applicable
Department for Business Energy and Industrial Strategy,Intellectual Property Office,14/12/2022,Pay Costs,PDTM Directorate,Alexander Mann Solutions Limited,2699927,618.30,Not Applicable
Department for Business Energy and Industrial Strategy,Intellectual Property Office,14/12/2022,Pay Costs,PDTM Directorate,Alexander Mann Solutions Limited,2699928,566.28,Not Applicable
Department for Business Energy and Industrial Strategy,Intellectual Property Office,14/12/2022,Pay Costs,PDTM Directorate,Alexander Mann Solutions Limited,2699929,707.86,Not Applicable
Department for Business Energy and Industrial Strategy,Intellectual Property Office,14/12/2022,Pay Costs,PDTM Directorate,Alexander Mann Solutions Limited,2699930,698.41,Not Applicable
Department for Business Energy and Industrial Strategy,Intellectual Property Office,14/12/2022,Pay Costs,PDTM Directorate,Alexander Mann Solutions Limited,2699931,"1,377.95",Not Applicable
Department for Business Energy and Industrial Strategy,Intellectual Property Office,14/12/2022,Pay Costs,Projects,Alexander Mann Solutions Limited,2699932,"4,311.54",Not Applicable
Department for Business Energy and Industrial Strategy,Intellectual Property Office,14/12/2022,Pay Costs,PDTM Directorate,Alexander Mann Solutions Limited,2699933,566.28,Not Applicable
Department for Business Energy and Industrial Strategy,Intellectual Property Office,14/12/2022,Pay Costs,DDaT Directorate,Alexander Mann Solutions Limited,2699935,"3,465.30",Not Applicable
Department for Business Energy and Industrial Strategy,Intellectual Property Office,14/12/2022,Pay Costs,DDaT Directorate,Alexander Mann Solutions Limited,2699936,"5,040.48",Not Applicable
Department for Business Energy and Industrial Strategy,Intellectual Property Office,14/12/2022,Pay Costs,DDaT Directorate,Alexander Mann Solutions Limited,2699937,"5,590.80",Not Applicable
Department for Business Energy and Industrial Strategy,Intellectual Property Office,14/12/2022,Pay Costs,PDTM Directorate,Alexander Mann Solutions Limited,2699938,902.04,Not Applicable
Department for Business Energy and Industrial Strategy,Intellectual Property Office,14/12/2022,Pay Costs,PDTM Directorate,Alexander Mann Solutions Limited,2699939,636.70,Not Applicable
Department for Business Energy and Industrial Strategy,Intellectual Property Office,14/12/2022,Pay Costs,DDaT Directorate,Alexander Mann Solutions Limited,2699940,"6,432.24",Not Applicable
Department for Business Energy and Industrial Strategy,Intellectual Property Office,14/12/2022,Pay Costs,DDaT Directorate,Alexander Mann Solutions Limited,2699941,"5,420.16",Not Applicable
Department for Business Energy and Industrial Strategy,Intellectual Property Office,14/12/2022,Pay Costs,Projects,Alexander Mann Solutions Limited,2699942,"3,465.30",Not Applicable
Department for Business Energy and Industrial Strategy,Intellectual Property Office,14/12/2022,Pay Costs,DDaT Directorate,Alexander Mann Solutions Limited,2699943,"5,040.48",Not Applicable
Department for Business Energy and Industrial Strategy,Intellectual Property Office,14/12/2022,Pay Costs,PDTM Directorate,Alexander Mann Solutions Limited,2699944,698.41,Not Applicable
Department for Business Energy and Industrial Strategy,Intellectual Property Office,14/12/2022,Pay Costs,DDaT Directorate,Alexander Mann Solutions Limited,2699945,"7,371.65",Not Applicable
Department for Business Energy and Industrial Strategy,Intellectual Property Office,14/12/2022,Pay Costs,PDTM Directorate,Alexander Mann Solutions Limited,2699946,585.16,Not Applicable
Department for Business Energy and Industrial Strategy,Intellectual Property Office,14/12/2022,Pay Costs,PDTM Directorate,Alexander Mann Solutions Limited,2699948,698.41,Not Applicable
Department for Business Energy and Industrial Strategy,Intellectual Property Office,14/12/2022,Pay Costs,PDTM Directorate,Alexander Mann Solutions Limited,2699949,698.41,Not Applicable
Department for Business Energy and Industrial Strategy,Intellectual Property Office,14/12/2022,Pay Costs,PDTM Directorate,Alexander Mann Solutions Limited,2699950,698.41,Not Applicable
Department for Business Energy and Industrial Strategy,Intellectual Property Office,14/12/2022,Pay Costs,PDTM Directorate,Alexander Mann Solutions Limited,2699951,698.41,Not Applicable
Department for Business Energy and Industrial Strategy,Intellectual Property Office,14/12/2022,Pay Costs,DDaT Directorate,Alexander Mann Solutions Limited,2699953,"8,180.88",Not Applicable
Department for Business Energy and Industrial Strategy,Intellectual Property Office,14/12/2022,Pay Costs,DDaT Directorate,Alexander Mann Solutions Limited,2699954,"6,930.60",Not Applicable
Department for Business Energy and Industrial Strategy,Intellectual Property Office,14/12/2022,Pay Costs,PDTM Directorate,Alexander Mann Solutions Limited,2699957,698.41,Not Applicable
Department for Business Energy and Industrial Strategy,Intellectual Property Office,14/12/2022,Pay Costs,CEO/SEC Directorate,Alexander Mann Solutions Limited,2699958,707.86,Not Applicable
Department for Business Energy and Industrial Strategy,Intellectual Property Office,14/12/2022,Pay Costs,Projects,Alexander Mann Solutions Limited,2699959,"3,350.64",Not Applicable
Department for Business Energy and Industrial Strategy,Intellectual Property Office,14/12/2022,Pay Costs,DDaT Directorate,Alexander Mann Solutions Limited,2699960,"2,440.62",Not Applicable
Department for Business Energy and Industrial Strategy,Intellectual Property Office,14/12/2022,Pay Costs,PDTM Directorate,Alexander Mann Solutions Limited,2699961,610.06,Not Applicable
Department for Business Energy and Industrial Strategy,Intellectual Property Office,14/12/2022,Pay Costs,Projects,Alexander Mann Solutions Limited,2699962,"3,465.30",Not Applicable
Department for Business Energy and Industrial Strategy,Intellectual Property Office,14/12/2022,Pay Costs,Finance Directorate,Alexander Mann Solutions Limited,2699963,698.41,Not Applicable
Department for Business Energy and Industrial Strategy,Intellectual Property Office,14/12/2022,Pay Costs,"Rights, Policy & Enforcement Directorate",Alexander Mann Solutions Limited,2699964,726.73,Not Applicable
Department for Business Energy and Industrial Strategy,Intellectual Property Office,14/12/2022,Pay Costs,DDaT Directorate,Alexander Mann Solutions Limited,2699965,"3,742.52",Not Applicable
Department for Business Energy and Industrial Strategy,Intellectual Property Office,14/12/2022,Pay Costs,DDaT Directorate,Alexander Mann Solutions Limited,2699966,"7,606.76",Not Applicable
Department for Business Energy and Industrial Strategy,Intellectual Property Office,14/12/2022,Pay Costs,DDaT Directorate,Alexander Mann Solutions Limited,2699967,"8,505.72",Not Applicable
Department for Business Energy and Industrial Strategy,Intellectual Property Office,14/12/2022,Pay Costs,DDaT Directorate,Alexander Mann Solutions Limited,2699968,"8,190.72",Not Applicable
Department for Business Energy and Industrial Strategy,Intellectual Property Office,14/12/2022,Pay Costs,DDaT Directorate,Alexander Mann Solutions Limited,2699969,"3,780.36",Not Applicable
Department for Business Energy and Industrial Strategy,Intellectual Property Office,14/12/2022,Pay Costs,DDaT Directorate,Alexander Mann Solutions Limited,2699970,"6,330.48",Not Applicable
Department for Business Energy and Industrial Strategy,Intellectual Property Office,14/12/2022,Pay Costs,DDaT Directorate,Alexander Mann Solutions Limited,2699971,"2,772.24",Not Applicable
Department for Business Energy and Industrial Strategy,Intellectual Property Office,14/12/2022,Pay Costs,DDaT Directorate,Alexander Mann Solutions Limited,2699972,"6,896.52",Not Applicable
Department for Business Energy and Industrial Strategy,Intellectual Property Office,14/12/2022,Pay Costs,DDaT Directorate,Alexander Mann Solutions Limited,2699973,"2,520.24",Not Applicable
Department for Business Energy and Industrial Strategy,Intellectual Property Office,14/12/2022,Pay Costs,DDaT Directorate,Alexander Mann Solutions Limited,2699974,"7,391.16",Not Applicable
Department for Business Energy and Industrial Strategy,Intellectual Property Office,14/12/2022,Pay Costs,DDaT Directorate,Alexander Mann Solutions Limited,2699975,"3,695.62",Not Applicable
Department for Business Energy and Industrial Strategy,Intellectual Property Office,14/12/2022,Pay Costs,DDaT Directorate,Alexander Mann Solutions Limited,2699976,"8,190.72",Not Applicable
Department for Business Energy and Industrial Strategy,Intellectual Property Office,13/12/2022,Pay Costs,Finance Directorate,Alexander Mann Solutions Limited,2699977,698.41,Not Applicable
Department for Business Energy and Industrial Strategy,Intellectual Property Office,14/12/2022,Pay Costs,DDaT Directorate,Alexander Mann Solutions Limited,2699978,"3,024.30",Not Applicable
Department for Business Energy and Industrial Strategy,Intellectual Property Office,20/12/2022,Pay Costs,PDTM Directorate,Alexander Mann Solutions Limited,2704530,726.01,Not Applicable
Department for Business Energy and Industrial Strategy,Intellectual Property Office,20/12/2022,Pay Costs,PDTM Directorate,Alexander Mann Solutions Limited,2704531,636.70,Not Applicable
Department for Business Energy and Industrial Strategy,Intellectual Property Office,20/12/2022,Pay Costs,DDaT Directorate,Alexander Mann Solutions Limited,2704533,"3,024.30",Not Applicable
Department for Business Energy and Industrial Strategy,Intellectual Property Office,20/12/2022,Pay Costs,Projects,Alexander Mann Solutions Limited,2704534,"2,999.70",Not Applicable
Department for Business Energy and Industrial Strategy,Intellectual Property Office,20/12/2022,Pay Costs,DDaT Directorate,Alexander Mann Solutions Limited,2704535,"4,090.44",Not Applicable
Department for Business Energy and Industrial Strategy,Intellectual Property Office,20/12/2022,Pay Costs,Projects,Alexander Mann Solutions Limited,2704536,"4,410.42",Not Applicable
Department for Business Energy and Industrial Strategy,Intellectual Property Office,20/12/2022,Pay Costs,PDTM Directorate,Alexander Mann Solutions Limited,2704537,645.30,Not Applicable
Department for Business Energy and Industrial Strategy,Intellectual Property Office,20/12/2022,Pay Costs,PDTM Directorate,Alexander Mann Solutions Limited,2704538,566.28,Not Applicable
Department for Business Energy and Industrial Strategy,Intellectual Property Office,20/12/2022,Pay Costs,PDTM Directorate,Alexander Mann Solutions Limited,2704539,698.41,Not Applicable
Department for Business Energy and Industrial Strategy,Intellectual Property Office,20/12/2022,Pay Costs,PDTM Directorate,Alexander Mann Solutions Limited,2704540,698.41,Not Applicable
Department for Business Energy and Industrial Strategy,Intellectual Property Office,20/12/2022,Pay Costs,PDTM Directorate,Alexander Mann Solutions Limited,2704541,698.41,Not Applicable
Department for Business Energy and Industrial Strategy,Intellectual Property Office,20/12/2022,Pay Costs,PDTM Directorate,Alexander Mann Solutions Limited,2704543,604.03,Not Applicable
Department for Business Energy and Industrial Strategy,Intellectual Property Office,20/12/2022,Pay Costs,DDaT Directorate,Alexander Mann Solutions Limited,2704545,"3,567.66",Not Applicable
Department for Business Energy and Industrial Strategy,Intellectual Property Office,20/12/2022,Pay Costs,PDTM Directorate,Alexander Mann Solutions Limited,2704546,698.41,Not Applicable
Department for Business Energy and Industrial Strategy,Intellectual Property Office,20/12/2022,Pay Costs,PDTM Directorate,Alexander Mann Solutions Limited,2704548,566.28,Not Applicable
Department for Business Energy and Industrial Strategy,Intellectual Property Office,20/12/2022,Pay Costs,PDTM Directorate,Alexander Mann Solutions Limited,2704549,707.86,Not Applicable
Department for Business Energy and Industrial Strategy,Intellectual Property Office,20/12/2022,Pay Costs,PDTM Directorate,Alexander Mann Solutions Limited,2704550,698.41,Not Applicable
Department for Business Energy and Industrial Strategy,Intellectual Property Office,20/12/2022,Pay Costs,Projects,Alexander Mann Solutions Limited,2704552,"4,311.54",Not Applicable
Department for Business Energy and Industrial Strategy,Intellectual Property Office,20/12/2022,Pay Costs,PDTM Directorate,Alexander Mann Solutions Limited,2704553,707.86,Not Applicable
Department for Business Energy and Industrial Strategy,Intellectual Property Office,20/12/2022,Pay Costs,DDaT Directorate,Alexander Mann Solutions Limited,2704555,"3,465.30",Not Applicable
Department for Business Energy and Industrial Strategy,Intellectual Property Office,20/12/2022,Pay Costs,DDaT Directorate,Alexander Mann Solutions Limited,2704556,"5,040.48",Not Applicable
Department for Business Energy and Industrial Strategy,Intellectual Property Office,20/12/2022,Pay Costs,DDaT Directorate,Alexander Mann Solutions Limited,2704558,"3,216.12",Not Applicable
Department for Business Energy and Industrial Strategy,Intellectual Property Office,20/12/2022,Pay Costs,DDaT Directorate,Alexander Mann Solutions Limited,2704559,"1,626.05",Not Applicable
Department for Business Energy and Industrial Strategy,Intellectual Property Office,20/12/2022,Pay Costs,Projects,Alexander Mann Solutions Limited,2704560,"2,772.24",Not Applicable
Department for Business Energy and Industrial Strategy,Intellectual Property Office,20/12/2022,Pay Costs,PDTM Directorate,Alexander Mann Solutions Limited,2704561,698.41,Not Applicable
Department for Business Energy and Industrial Strategy,Intellectual Property Office,20/12/2022,Pay Costs,PDTM Directorate,Alexander Mann Solutions Limited,2704562,698.41,Not Applicable
Department for Business Energy and Industrial Strategy,Intellectual Property Office,20/12/2022,Pay Costs,PDTM Directorate,Alexander Mann Solutions Limited,2704564,556.85,Not Applicable
Department for Business Energy and Industrial Strategy,Intellectual Property Office,20/12/2022,Pay Costs,PDTM Directorate,Alexander Mann Solutions Limited,2704565,698.41,Not Applicable
Department for Business Energy and Industrial Strategy,Intellectual Property Office,20/12/2022,Pay Costs,PDTM Directorate,Alexander Mann Solutions Limited,2704566,556.85,Not Applicable
Department for Business Energy and Industrial Strategy,Intellectual Property Office,20/12/2022,Pay Costs,PDTM Directorate,Alexander Mann Solutions Limited,2704567,698.41,Not Applicable
Department for Business Energy and Industrial Strategy,Intellectual Property Office,20/12/2022,Pay Costs,PDTM Directorate,Alexander Mann Solutions Limited,2704568,698.41,Not Applicable
Department for Business Energy and Industrial Strategy,Intellectual Property Office,20/12/2022,Pay Costs,PDTM Directorate,Alexander Mann Solutions Limited,2704569,698.41,Not Applicable
Department for Business Energy and Industrial Strategy,Intellectual Property Office,20/12/2022,Pay Costs,DDaT Directorate,Alexander Mann Solutions Limited,2704570,"4,090.44",Not Applicable
Department for Business Energy and Industrial Strategy,Intellectual Property Office,20/12/2022,Pay Costs,DDaT Directorate,Alexander Mann Solutions Limited,2704571,"2,772.24",Not Applicable
Department for Business Energy and Industrial Strategy,Intellectual Property Office,20/12/2022,Pay Costs,PDTM Directorate,Alexander Mann Solutions Limited,2704572,610.06,Not Applicable
Department for Business Energy and Industrial Strategy,Intellectual Property Office,20/12/2022,Pay Costs,PDTM Directorate,Alexander Mann Solutions Limited,2704573,556.85,Not Applicable
Department for Business Energy and Industrial Strategy,Intellectual Property Office,20/12/2022,Pay Costs,PDTM Directorate,Alexander Mann Solutions Limited,2704574,698.41,Not Applicable
Department for Business Energy and Industrial Strategy,Intellectual Property Office,20/12/2022,Pay Costs,CEO/SEC Directorate,Alexander Mann Solutions Limited,2704575,736.16,Not Applicable
Department for Business Energy and Industrial Strategy,Intellectual Property Office,20/12/2022,Pay Costs,DDaT Directorate,Alexander Mann Solutions Limited,2704576,"2,440.62",Not Applicable
Department for Business Energy and Industrial Strategy,Intellectual Property Office,20/12/2022,Pay Costs,PDTM Directorate,Alexander Mann Solutions Limited,2704577,610.06,Not Applicable
Department for Business Energy and Industrial Strategy,Intellectual Property Office,20/12/2022,Pay Costs,Projects,Alexander Mann Solutions Limited,2704578,"3,465.30",Not Applicable
Department for Business Energy and Industrial Strategy,Intellectual Property Office,20/12/2022,Pay Costs,Finance Directorate,Alexander Mann Solutions Limited,2704579,698.41,Not Applicable
Department for Business Energy and Industrial Strategy,Intellectual Property Office,20/12/2022,Pay Costs,"Rights, Policy & Enforcement Directorate",Alexander Mann Solutions Limited,2704580,698.41,Not Applicable
Department for Business Energy and Industrial Strategy,Intellectual Property Office,20/12/2022,Pay Costs,DDaT Directorate,Alexander Mann Solutions Limited,2704581,"5,405.87",Not Applicable
Department for Business Energy and Industrial Strategy,Intellectual Property Office,20/12/2022,Pay Costs,DDaT Directorate,Alexander Mann Solutions Limited,2704582,"4,003.56",Not Applicable
Department for Business Energy and Industrial Strategy,Intellectual Property Office,20/12/2022,Pay Costs,DDaT Directorate,Alexander Mann Solutions Limited,2704583,"4,252.86",Not Applicable
Department for Business Energy and Industrial Strategy,Intellectual Property Office,20/12/2022,Pay Costs,DDaT Directorate,Alexander Mann Solutions Limited,2704584,"4,095.36",Not Applicable
Department for Business Energy and Industrial Strategy,Intellectual Property Office,20/12/2022,Pay Costs,DDaT Directorate,Alexander Mann Solutions Limited,2704585,"3,024.29",Not Applicable
Department for Business Energy and Industrial Strategy,Intellectual Property Office,20/12/2022,Pay Costs,DDaT Directorate,Alexander Mann Solutions Limited,2704586,"5,544.48",Not Applicable
Department for Business Energy and Industrial Strategy,Intellectual Property Office,20/12/2022,Pay Costs,DDaT Directorate,Alexander Mann Solutions Limited,2704587,"2,520.24",Not Applicable
Department for Business Energy and Industrial Strategy,Intellectual Property Office,20/12/2022,Pay Costs,DDaT Directorate,Alexander Mann Solutions Limited,2704588,"4,410.42",Not Applicable
Department for Business Energy and Industrial Strategy,Intellectual Property Office,20/12/2022,Pay Costs,DDaT Directorate,Alexander Mann Solutions Limited,2704589,"3,695.58",Not Applicable
Department for Business Energy and Industrial Strategy,Intellectual Property Office,20/12/2022,Pay Costs,DDaT Directorate,Alexander Mann Solutions Limited,2704590,"3,695.62",Not Applicable
Department for Business Energy and Industrial Strategy,Intellectual Property Office,20/12/2022,Pay Costs,DDaT Directorate,Alexander Mann Solutions Limited,2704591,"2,457.22",Not Applicable
Department for Business Energy and Industrial Strategy,Intellectual Property Office,20/12/2022,Pay Costs,DDaT Directorate,Alexander Mann Solutions Limited,2704592,"4,090.44",Not Applicable
Department for Business Energy and Industrial Strategy,Intellectual Property Office,20/12/2022,Pay Costs,DDaT Directorate,Alexander Mann Solutions Limited,2704593,"3,024.30",Not Applicable
Department for Business Energy and Industrial Strategy,Intellectual Property Office,30/12/2022,Pay Costs,PDTM Directorate,Alexander Mann Solutions Limited,2709297,698.41,Not Applicable
Department for Business Energy and Industrial Strategy,Intellectual Property Office,30/12/2022,Pay Costs,PDTM Directorate,Alexander Mann Solutions Limited,2709298,698.41,Not Applicable
Department for Business Energy and Industrial Strategy,Intellectual Property Office,30/12/2022,Pay Costs,PDTM Directorate,Alexander Mann Solutions Limited,2709299,698.41,Not Applicable
Department for Business Energy and Industrial Strategy,Intellectual Property Office,30/12/2022,Pay Costs,Projects,Alexander Mann Solutions Limited,2709300,"2,999.70",Not Applicable
Department for Business Energy and Industrial Strategy,Intellectual Property Office,30/12/2022,Pay Costs,DDaT Directorate,Alexander Mann Solutions Limited,2709301,"4,090.44",Not Applicable
Department for Business Energy and Industrial Strategy,Intellectual Property Office,30/12/2022,Pay Costs,Projects,Alexander Mann Solutions Limited,2709302,"4,410.42",Not Applicable
Department for Business Energy and Industrial Strategy,Intellectual Property Office,30/12/2022,Pay Costs,PDTM Directorate,Alexander Mann Solutions Limited,2709303,645.30,Not Applicable
Department for Business Energy and Industrial Strategy,Intellectual Property Office,30/12/2022,Pay Costs,PDTM Directorate,Alexander Mann Solutions Limited,2709304,566.28,Not Applicable
Department for Business Energy and Industrial Strategy,Intellectual Property Office,30/12/2022,Pay Costs,PDTM Directorate,Alexander Mann Solutions Limited,2709305,698.41,Not Applicable
Department for Business Energy and Industrial Strategy,Intellectual Property Office,30/12/2022,Pay Costs,PDTM Directorate,Alexander Mann Solutions Limited,2709306,698.41,Not Applicable
Department for Business Energy and Industrial Strategy,Intellectual Property Office,30/12/2022,Pay Costs,PDTM Directorate,Alexander Mann Solutions Limited,2709307,"1,458.17",Not Applicable
Department for Business Energy and Industrial Strategy,Intellectual Property Office,30/12/2022,Pay Costs,PDTM Directorate,Alexander Mann Solutions Limited,2709308,556.85,Not Applicable
Department for Business Energy and Industrial Strategy,Intellectual Property Office,30/12/2022,Pay Costs,PDTM Directorate,Alexander Mann Solutions Limited,2709310,655.94,Not Applicable
Department for Business Energy and Industrial Strategy,Intellectual Property Office,30/12/2022,Pay Costs,DDaT Directorate,Alexander Mann Solutions Limited,2709312,"2,854.13",Not Applicable
Department for Business Energy and Industrial Strategy,Intellectual Property Office,30/12/2022,Pay Costs,PDTM Directorate,Alexander Mann Solutions Limited,2709313,707.86,Not Applicable
Department for Business Energy and Industrial Strategy,Intellectual Property Office,30/12/2022,Pay Costs,PDTM Directorate,Alexander Mann Solutions Limited,2709316,707.86,Not Applicable
Department for Business Energy and Industrial Strategy,Intellectual Property Office,30/12/2022,Pay Costs,PDTM Directorate,Alexander Mann Solutions Limited,2709317,566.28,Not Applicable
Department for Business Energy and Industrial Strategy,Intellectual Property Office,30/12/2022,Pay Costs,PDTM Directorate,Alexander Mann Solutions Limited,2709318,698.41,Not Applicable
Department for Business Energy and Industrial Strategy,Intellectual Property Office,30/12/2022,Pay Costs,Projects,Alexander Mann Solutions Limited,2709319,"4,311.54",Not Applicable
Department for Business Energy and Industrial Strategy,Intellectual Property Office,30/12/2022,Pay Costs,PDTM Directorate,Alexander Mann Solutions Limited,2709320,707.86,Not Applicable
Department for Business Energy and Industrial Strategy,Intellectual Property Office,30/12/2022,Pay Costs,DDaT Directorate,Alexander Mann Solutions Limited,2709322,"3,465.30",Not Applicable
Department for Business Energy and Industrial Strategy,Intellectual Property Office,30/12/2022,Pay Costs,DDaT Directorate,Alexander Mann Solutions Limited,2709323,"5,040.48",Not Applicable
Department for Business Energy and Industrial Strategy,Intellectual Property Office,30/12/2022,Pay Costs,DDaT Directorate,Alexander Mann Solutions Limited,2709324,"3,913.56",Not Applicable
Department for Business Energy and Industrial Strategy,Intellectual Property Office,30/12/2022,Pay Costs,PDTM Directorate,Alexander Mann Solutions Limited,2709325,636.70,Not Applicable
Department for Business Energy and Industrial Strategy,Intellectual Property Office,30/12/2022,Pay Costs,PDTM Directorate,Alexander Mann Solutions Limited,2709326,636.70,Not Applicable
Department for Business Energy and Industrial Strategy,Intellectual Property Office,30/12/2022,Pay Costs,DDaT Directorate,Alexander Mann Solutions Limited,2709327,643.22,Not Applicable
Department for Business Energy and Industrial Strategy,Intellectual Property Office,30/12/2022,Pay Costs,DDaT Directorate,Alexander Mann Solutions Limited,2709328,"2,710.08",Not Applicable
Department for Business Energy and Industrial Strategy,Intellectual Property Office,30/12/2022,Pay Costs,Projects,Alexander Mann Solutions Limited,2709329,"3,465.30",Not Applicable
Department for Business Energy and Industrial Strategy,Intellectual Property Office,30/12/2022,Pay Costs,DDaT Directorate,Alexander Mann Solutions Limited,2709330,"10,080.96",Not Applicable
Department for Business Energy and Industrial Strategy,Intellectual Property Office,30/12/2022,Pay Costs,PDTM Directorate,Alexander Mann Solutions Limited,2709331,698.41,Not Applicable
Department for Business Energy and Industrial Strategy,Intellectual Property Office,30/12/2022,Pay Costs,DDaT Directorate,Alexander Mann Solutions Limited,2709332,"7,371.65",Not Applicable
Department for Business Energy and Industrial Strategy,Intellectual Property Office,30/12/2022,Pay Costs,PDTM Directorate,Alexander Mann Solutions Limited,2709333,698.41,Not Applicable
Department for Business Energy and Industrial Strategy,Intellectual Property Office,30/12/2022,Pay Costs,PDTM Directorate,Alexander Mann Solutions Limited,2709335,698.41,Not Applicable
Department for Business Energy and Industrial Strategy,Intellectual Property Office,30/12/2022,Pay Costs,PDTM Directorate,Alexander Mann Solutions Limited,2709336,698.41,Not Applicable
Department for Business Energy and Industrial Strategy,Intellectual Property Office,30/12/2022,Pay Costs,PDTM Directorate,Alexander Mann Solutions Limited,2709337,698.41,Not Applicable
Department for Business Energy and Industrial Strategy,Intellectual Property Office,30/12/2022,Pay Costs,PDTM Directorate,Alexander Mann Solutions Limited,2709338,674.82,Not Applicable
Department for Business Energy and Industrial Strategy,Intellectual Property Office,30/12/2022,Pay Costs,PDTM Directorate,Alexander Mann Solutions Limited,2709339,698.41,Not Applicable
Department for Business Energy and Industrial Strategy,Intellectual Property Office,30/12/2022,Pay Costs,PDTM Directorate,Alexander Mann Solutions Limited,2709340,698.41,Not Applicable
Department for Business Energy and Industrial Strategy,Intellectual Property Office,30/12/2022,Pay Costs,DDaT Directorate,Alexander Mann Solutions Limited,2709341,"3,465.30",Not Applicable
Department for Business Energy and Industrial Strategy,Intellectual Property Office,30/12/2022,Pay Costs,PDTM Directorate,Alexander Mann Solutions Limited,2709342,568.84,Not Applicable
Department for Business Energy and Industrial Strategy,Intellectual Property Office,30/12/2022,Pay Costs,PDTM Directorate,Alexander Mann Solutions Limited,2709344,698.41,Not Applicable
Department for Business Energy and Industrial Strategy,Intellectual Property Office,30/12/2022,Pay Costs,CEO/SEC Directorate,Alexander Mann Solutions Limited,2709345,613.48,Not Applicable
Department for Business Energy and Industrial Strategy,Intellectual Property Office,30/12/2022,Pay Costs,Projects,Alexander Mann Solutions Limited,2709346,"6,031.15",Not Applicable
Department for Business Energy and Industrial Strategy,Intellectual Property Office,30/12/2022,Pay Costs,DDaT Directorate,Alexander Mann Solutions Limited,2709347,"2,440.62",Not Applicable
Department for Business Energy and Industrial Strategy,Intellectual Property Office,30/12/2022,Pay Costs,Projects,Alexander Mann Solutions Limited,2709349,"3,465.30",Not Applicable
Department for Business Energy and Industrial Strategy,Intellectual Property Office,30/12/2022,Pay Costs,Finance Directorate,Alexander Mann Solutions Limited,2709350,679.54,Not Applicable
Department for Business Energy and Industrial Strategy,Intellectual Property Office,30/12/2022,Pay Costs,DDaT Directorate,Alexander Mann Solutions Limited,2709351,"4,158.36",Not Applicable
Department for Business Energy and Industrial Strategy,Intellectual Property Office,30/12/2022,Pay Costs,DDaT Directorate,Alexander Mann Solutions Limited,2709352,"4,003.56",Not Applicable
Department for Business Energy and Industrial Strategy,Intellectual Property Office,30/12/2022,Pay Costs,DDaT Directorate,Alexander Mann Solutions Limited,2709353,"4,252.86",Not Applicable
Department for Business Energy and Industrial Strategy,Intellectual Property Office,30/12/2022,Pay Costs,DDaT Directorate,Alexander Mann Solutions Limited,2709354,"4,095.36",Not Applicable
Department for Business Energy and Industrial Strategy,Intellectual Property Office,30/12/2022,Pay Costs,DDaT Directorate,Alexander Mann Solutions Limited,2709355,"6,330.48",Not Applicable
Department for Business Energy and Industrial Strategy,Intellectual Property Office,30/12/2022,Pay Costs,DDaT Directorate,Alexander Mann Solutions Limited,2709356,"2,772.24",Not Applicable
Department for Business Energy and Industrial Strategy,Intellectual Property Office,30/12/2022,Pay Costs,DDaT Directorate,Alexander Mann Solutions Limited,2709357,"3,275.84",Not Applicable
Department for Business Energy and Industrial Strategy,Intellectual Property Office,30/12/2022,Pay Costs,DDaT Directorate,Alexander Mann Solutions Limited,2709358,"2,520.24",Not Applicable
Department for Business Energy and Industrial Strategy,Intellectual Property Office,30/12/2022,Pay Costs,DDaT Directorate,Alexander Mann Solutions Limited,2709359,"4,410.42",Not Applicable
Department for Business Energy and Industrial Strategy,Intellectual Property Office,30/12/2022,Pay Costs,DDaT Directorate,Alexander Mann Solutions Limited,2709360,"3,695.58",Not Applicable
Department for Business Energy and Industrial Strategy,Intellectual Property Office,30/12/2022,Pay Costs,DDaT Directorate,Alexander Mann Solutions Limited,2709361,"3,695.62",Not Applicable
Department for Business Energy and Industrial Strategy,Intellectual Property Office,30/12/2022,Pay Costs,DDaT Directorate,Alexander Mann Solutions Limited,2709362,"4,095.36",Not Applicable
Department for Business Energy and Industrial Strategy,Intellectual Property Office,30/12/2022,Pay Costs,Finance Directorate,Alexander Mann Solutions Limited,2709363,"1,264.69",Not Applicable
Department for Business Energy and Industrial Strategy,Intellectual Property Office,30/12/2022,Pay Costs,DDaT Directorate,Alexander Mann Solutions Limited,2709364,"4,090.44",Not Applicable
Department for Business Energy and Industrial Strategy,Intellectual Property Office,30/12/2022,Pay Costs,DDaT Directorate,Alexander Mann Solutions Limited,2709365,"2,419.44",Not Applicable
Department for Business Energy and Industrial Strategy,Intellectual Property Office,30/12/2022,Pay Costs,DDaT Directorate,Alexander Mann Solutions Limited,2709366,"4,095.36",Not Applicable
Department for Business Energy and Industrial Strategy,Intellectual Property Office,30/12/2022,Pay Costs,PDTM Directorate,Alexander Mann Solutions Limited,2709367,"1,429.15",Not Applicable
Department for Business Energy and Industrial Strategy,Intellectual Property Office,30/12/2022,Pay Costs,PDTM Directorate,Alexander Mann Solutions Limited,2709368,636.70,Not Applicable
Department for Business Energy and Industrial Strategy,Intellectual Property Office,14/12/2022,Pay Costs,PDTM Directorate,Alexander Mann Solutions Limited,37039,-679.54,Not Applicable
Department for Business Energy and Industrial Strategy,Intellectual Property Office,01/12/2022,Supporting UK Business,PDTM Directorate,Secerna LLP,22668,"4,500.00",Not Applicable
Department for Business Energy and Industrial Strategy,Intellectual Property Office,06/12/2022,Accommodation,"Rights, Policy & Enforcement Directorate",Chargemaster Limited,910012220,672.00,Not Applicable
Department for Business Energy and Industrial Strategy,Intellectual Property Office,06/12/2022,Accommodation,"Rights, Policy & Enforcement Directorate",Chargemaster Limited,910012220-CN,-672.00,Not Applicable
Department for Business Energy and Industrial Strategy,Intellectual Property Office,30/12/2022,Information Technology,DDaT Directorate,DYNATRACE LIMITED,GBR-2006830,"579,472.75",Not Applicable
Department for Business Energy and Industrial Strategy,Intellectual Property Office,06/12/2022,Information Technology,Projects,Empyrean Digital Ltd,EMP-641,"59,503.20",Not Applicable
Department for Business Energy and Industrial Strategy,Intellectual Property Office,22/12/2022,Pay Costs,Projects,Empyrean Digital Ltd,EMP-658,"249,286.80",Not Applicable
Department for Business Energy and Industrial Strategy,Intellectual Property Office,22/12/2022,Pay Costs,Projects,Empyrean Digital Ltd,EMP-659,"17,768.40",Not Applicable
Department for Business Energy and Industrial Strategy,Intellectual Property Office,22/12/2022,Information Technology,Projects,Empyrean Digital Ltd,EMP-660,"17,374.80",Not Applicable
Department for Business Energy and Industrial Strategy,Intellectual Property Office,30/12/2022,Accommodation,"Rights, Policy & Enforcement Directorate",Government Property Agency,00000001/21317,"164,964.32",Not Applicable
Department for Business Energy and Industrial Strategy,Intellectual Property Office,09/12/2022,Accommodation,"Rights, Policy & Enforcement Directorate",Government Property Agency,00000001/22568,"2,174.84",Not Applicable
Department for Business Energy and Industrial Strategy,Intellectual Property Office,09/12/2022,Accommodation,"Rights, Policy & Enforcement Directorate",Government Property Agency,00000001/22568,"78,670.70",Not Applicable
Department for Business Energy and Industrial Strategy,Intellectual Property Office,13/12/2022,Marketing & Publicity,PDTM Directorate,Hub Exhibitions Limited,INV-1272,"3,081.60",Not Applicable
Department for Business Energy and Industrial Strategy,Intellectual Property Office,09/12/2022,Information Technology,DDaT Directorate,Broadberry Data Systems Ltd,83021,"13,176.00",Not Applicable
Department for Business Energy and Industrial Strategy,Intellectual Property Office,05/12/2022,Marketing & Publicity,Strategy Directorate,Axis12 Limited,INV-4828,"1,303.20",Not Applicable
Department for Business Energy and Industrial Strategy,Intellectual Property Office,14/12/2022,Supporting UK Business,PDTM Directorate,Taylor Vinters,4107701,"5,000.00",Not Applicable
Department for Business Energy and Industrial Strategy,Intellectual Property Office,14/12/2022,Staff Costs,"Rights, Policy & Enforcement Directorate",Avado Learning Limited,24883,"7,245.00",Not Applicable
Department for Business Energy and Industrial Strategy,Intellectual Property Office,02/12/2022,Staff Costs,"Rights, Policy & Enforcement Directorate",The Myers-Briggs Company Limited,973095-0-CN,"-1,132.12",Not Applicable
Department for Business Energy and Industrial Strategy,Intellectual Property Office,02/12/2022,Staff Costs,"Rights, Policy & Enforcement Directorate",The Myers-Briggs Company Limited,INV0834366,"1,132.12",Not Applicable
Department for Business Energy and Industrial Strategy,Intellectual Property Office,01/12/2022,Information Technology,DDaT Directorate,Cloudflare Inc,CI-145949,"1,881.68",Not Applicable
Department for Business Energy and Industrial Strategy,Intellectual Property Office,01/12/2022,Information Technology,DDaT Directorate,Cloudflare Inc,CI-145949,"8,326.26",Not Applicable
Department for Business Energy and Industrial Strategy,Intellectual Property Office,05/12/2022,Staff Costs,PDTM Directorate,"Millennium Stadium Experience Ltd, T/A P",27885,"1,672.80",Not Applicable
Department for Business Energy and Industrial Strategy,Intellectual Property Office,05/12/2022,Supporting UK Business,PDTM Directorate,Pinsent Masons LLP,6717749,"5,000.00",Not Applicable
Department for Business Energy and Industrial Strategy,Intellectual Property Office,01/12/2022,Supporting UK Business,PDTM Directorate,Panoramix Limited,INV-0773,"2,500.00",Not Applicable
Department for Business Energy and Industrial Strategy,Intellectual Property Office,19/12/2022,Supporting UK Business,PDTM Directorate,Panoramix Limited,INV-0791,"2,500.00",Not Applicable
Department for Business Energy and Industrial Strategy,Intellectual Property Office,23/12/2022,Supporting UK Business,PDTM Directorate,Panoramix Limited,INV-0794,"2,500.00",Not Applicable
Department for Business Energy and Industrial Strategy,Intellectual Property Office,06/12/2022,Supporting UK Business,PDTM Directorate,Panoramix Limited,INV-0801,"2,500.00",Not Applicable
Department for Business Energy and Industrial Strategy,Intellectual Property Office,30/12/2022,Miscellaneous Expenses General,"Rights, Policy & Enforcement Directorate",MHR International UK Ltd,SIN168876,"20,073.60",Not Applicable
Department for Business Energy and Industrial Strategy,Intellectual Property Office,05/12/2022,Supporting UK Business,PDTM Directorate,Claines Limited (T/A The Intellectual Pr,INV-1271,"2,500.00",Not Applicable
Department for Business Energy and Industrial Strategy,Intellectual Property Office,21/12/2022,Staff Costs,"Rights, Policy & Enforcement Directorate",IRG Advisors T/A Odgers Interim,22003014JRT86438,"24,885.00",Not Applicable
Department for Business Energy and Industrial Strategy,Intellectual Property Office,12/12/2022,Pay Costs,Projects,IRG Advisors T/A Odgers Interim,869364,"37,936.80",Not Applicable
Department for Business Energy and Industrial Strategy,Intellectual Property Office,21/12/2022,Supporting UK Business,"Rights, Policy & Enforcement Directorate",The London Trading Standards Association,2491,"6,000.00",Not Applicable
Department for Business Energy and Industrial Strategy,Intellectual Property Office,01/12/2022,Supporting UK Business,PDTM Directorate,Cleveland Scott York IP Ltd,55149,"2,500.00",Not Applicable
Department for Business Energy and Industrial Strategy,Intellectual Property Office,19/12/2022,Supporting UK Business,PDTM Directorate,JMW Solicitors LLP,1003669,"2,500.00",Not Applicable
Department for Business Energy and Industrial Strategy,Intellectual Property Office,30/12/2022,Information Technology,DDaT Directorate,Hewlett Packard International Bank DAC,4.00901E+11,"17,859.29",Not Applicable
Department for Business Energy and Industrial Strategy,Intellectual Property Office,30/12/2022,Information Technology,DDaT Directorate,Hewlett Packard International Bank DAC,4.00901E+11,"18,113.07",Not Applicable
Department for Business Energy and Industrial Strategy,Intellectual Property Office,06/12/2022,Pay Costs,DDaT Directorate,Allen Lane LTD,1236185,"6,188.82",Not Applicable
Department for Business Energy and Industrial Strategy,Intellectual Property Office,05/12/2022,Pay Costs,DDaT Directorate,Allen Lane LTD,1236186,"4,380.00",Not Applicable
Department for Business Energy and Industrial Strategy,Intellectual Property Office,09/12/2022,Pay Costs,DDaT Directorate,Allen Lane LTD,1236675,"4,380.00",Not Applicable
Department for Business Energy and Industrial Strategy,Intellectual Property Office,09/12/2022,Pay Costs,DDaT Directorate,Allen Lane LTD,1236980,"6,188.82",Not Applicable
Department for Business Energy and Industrial Strategy,Intellectual Property Office,21/12/2022,Pay Costs,DDaT Directorate,Allen Lane LTD,1237145,"6,188.82",Not Applicable
Department for Business Energy and Industrial Strategy,Intellectual Property Office,21/12/2022,Pay Costs,DDaT Directorate,Allen Lane LTD,1237146,"4,380.00",Not Applicable
Department for Business Energy and Industrial Strategy,Intellectual Property Office,22/12/2022,Pay Costs,DDaT Directorate,Allen Lane LTD,1237830,"6,188.82",Not Applicable
Department for Business Energy and Industrial Strategy,Intellectual Property Office,22/12/2022,Pay Costs,DDaT Directorate,Allen Lane LTD,1237831,"4,380.00",Not Applicable
Department for Business Energy and Industrial Strategy,Intellectual Property Office,05/12/2022,Supporting UK Business,PDTM Directorate,Strachan IP Ltd,INV-0246,"2,500.00",Not Applicable
Department for Business Energy and Industrial Strategy,Intellectual Property Office,19/12/2022,Supporting UK Business,PDTM Directorate,Loven Patents & Trademarks Ltd,20220528,"4,914.00",Not Applicable
Department for Business Energy and Industrial Strategy,Intellectual Property Office,01/12/2022,Misc Expenses Finance,Finance Directorate,Worldpay,225868873,"173,028.34",Not Applicable
Department for Business Energy and Industrial Strategy,Intellectual Property Office,22/12/2022,Miscellaneous Expenses General,Business & International Policy Directorate,West Midlands Combined Authority,6003473,900.00,Not Applicable
Department for Business Energy and Industrial Strategy,Intellectual Property Office,07/12/2022,Staff Costs,"Rights, Policy & Enforcement Directorate",University of Derby,EX059811-1006018,"2,625.00",Not Applicable
Department for Business Energy and Industrial Strategy,Intellectual Property Office,05/12/2022,Staff Costs,"Rights, Policy & Enforcement Directorate",Be Applied Ltd,INV-1521,"9,360.00",Not Applicable
Department for Business Energy and Industrial Strategy,Intellectual Property Office,05/12/2022,Pay Costs,Projects,Talent International Holdings PTY Limite,63839,"16,800.00",Not Applicable
Department for Business Energy and Industrial Strategy,Intellectual Property Office,05/12/2022,Pay Costs,DDaT Directorate,Talent International Holdings PTY Limite,63840,"14,400.00",Not Applicable
Department for Business Energy and Industrial Strategy,Intellectual Property Office,05/12/2022,Pay Costs,DDaT Directorate,Talent International Holdings PTY Limite,63841,"14,400.00",Not Applicable
Department for Business Energy and Industrial Strategy,Intellectual Property Office,05/12/2022,Pay Costs,DDaT Directorate,Talent International Holdings PTY Limite,63842,"13,680.00",Not Applicable
Department for Business Energy and Industrial Strategy,Intellectual Property Office,05/12/2022,Pay Costs,Projects,Talent International Holdings PTY Limite,63843,"17,352.00",Not Applicable
Department for Business Energy and Industrial Strategy,Intellectual Property Office,12/12/2022,Pay Costs,"Rights, Policy & Enforcement Directorate",Edenred,1101523,"19,040.00",Not Applicable
Department for Business Energy and Industrial Strategy,Intellectual Property Office,12/12/2022,Supporting UK Business,PDTM Directorate,Edenred,1101523,250.00,Not Applicable
Department for Business Energy and Industrial Strategy,Intellectual Property Office,01/12/2022,Legal & Hearings,PDTM Directorate,Mills and Reeve LLP,178169,"14,634.00",Not Applicable
Department for Business Energy and Industrial Strategy,Intellectual Property Office,19/12/2022,Legal & Hearings,PDTM Directorate,Mills and Reeve LLP,182180,"59,322.36",Not Applicable
Department for Business Energy and Industrial Strategy,Intellectual Property Office,21/12/2022,Marketing & Publicity,Strategy Directorate,Delib Ltd,2428,"17,994.00",Not Applicable
Department for Business Energy and Industrial Strategy,Intellectual Property Office,30/12/2022,Accommodation,"Rights, Policy & Enforcement Directorate",TotalEnergies Gas & Power,286130982/22,"1,687.69",Not Applicable
Department for Business Energy and Industrial Strategy,Intellectual Property Office,30/12/2022,Accommodation,"Rights, Policy & Enforcement Directorate",TotalEnergies Gas & Power,286130993-22,"4,183.96",Not Applicable
Department for Business Energy and Industrial Strategy,Intellectual Property Office,30/12/2022,Information Technology,DDaT Directorate,Informatica Software Ltd,10002650,"95,998.80",Not Applicable
Department for Business Energy and Industrial Strategy,Intellectual Property Office,19/12/2022,Supporting UK Business,PDTM Directorate,Altair IP Ltd,202243,"5,000.00",Not Applicable
Department for Business Energy and Industrial Strategy,Intellectual Property Office,07/12/2022,Legal & Hearings,PDTM Directorate,Martin Howe QC,64833-INVMH1096,540.00,Not Applicable
Department for Business Energy and Industrial Strategy,Intellectual Property Office,07/12/2022,Legal & Hearings,PDTM Directorate,Dr Stuart Baran,INV-SB882,"1,830.00",Not Applicable
Department for Business Energy and Industrial Strategy,Intellectual Property Office,06/12/2022,Legal & Hearings,PDTM Directorate,Dr Stuart Baran,INV-SB883,"3,606.00",Not Applicable
Department for Business Energy and Industrial Strategy,Intellectual Property Office,16/12/2022,Supporting UK Business,"Rights, Policy & Enforcement Directorate",Department for the Economy NI,90004881,"5,000.00",Not Applicable
Department for Business Energy and Industrial Strategy,Intellectual Property Office,23/12/2022,Office Machinery,DDaT Directorate,Annodata Limited T/A Kyocera,1302102,957.84,Not Applicable
Department for Business Energy and Industrial Strategy,Intellectual Property Office,09/12/2022,Marketing & Publicity,PDTM Directorate,Closerstill Media Ltd,34023056,"5,240.70",Not Applicable
Department for Business Energy and Industrial Strategy,Intellectual Property Office,01/12/2022,Pay Costs,Projects,JobSpec Limited,JS-759091,"3,918.00",Not Applicable
Department for Business Energy and Industrial Strategy,Intellectual Property Office,09/12/2022,Pay Costs,Projects,JobSpec Limited,JS-759092,"3,918.00",Not Applicable
Department for Business Energy and Industrial Strategy,Intellectual Property Office,19/12/2022,Pay Costs,Projects,JobSpec Limited,JS-759093,"3,918.00",Not Applicable
Department for Business Energy and Industrial Strategy,Intellectual Property Office,21/12/2022,Pay Costs,Projects,JobSpec Limited,JS-759094,"3,918.00",Not Applicable
Department for Business Energy and Industrial Strategy,Intellectual Property Office,09/12/2022,Supporting UK Business,"Rights, Policy & Enforcement Directorate",Immediate Media Company London Ltd,INV-035746,"5,648.15",Not Applicable
Department for Business Energy and Industrial Strategy,Intellectual Property Office,01/12/2022,Supporting UK Business,"Rights, Policy & Enforcement Directorate",Immediate Media Company London Ltd,INV-036640,"7,907.39",Not Applicable
Department for Business Energy and Industrial Strategy,Intellectual Property Office,01/12/2022,Supporting UK Business,"Rights, Policy & Enforcement Directorate",Immediate Media Company London Ltd,INV-036657,"4,528.20",Not Applicable
Department for Business Energy and Industrial Strategy,Intellectual Property Office,13/12/2022,Pay Costs,DDaT Directorate,Adecco UK Ltd,TV6069,"4,620.00",Not Applicable
Department for Business Energy and Industrial Strategy,Intellectual Property Office,19/12/2022,Pay Costs,DDaT Directorate,Adecco UK Ltd,TW3871,"4,620.00",Not Applicable
Department for Business Energy and Industrial Strategy,Intellectual Property Office,22/12/2022,Pay Costs,DDaT Directorate,Adecco UK Ltd,TX1598,"2,772.00",Not Applicable
Department for Business Energy and Industrial Strategy,Intellectual Property Office,05/12/2022,Pay Costs,DDaT Directorate,SOLOS Consultants,55062,"4,619.94",Not Applicable
Department for Business Energy and Industrial Strategy,Intellectual Property Office,12/12/2022,Pay Costs,DDaT Directorate,SOLOS Consultants,55090,"4,619.94",Not Applicable
Department for Business Energy and Industrial Strategy,Intellectual Property Office,21/12/2022,Pay Costs,DDaT Directorate,SOLOS Consultants,55114,"4,619.94",Not Applicable
Department for Business Energy and Industrial Strategy,Intellectual Property Office,30/12/2022,Pay Costs,DDaT Directorate,SOLOS Consultants,55140,"4,619.94",Not Applicable
Department for Business Energy and Industrial Strategy,Intellectual Property Office,05/12/2022,Miscellaneous Expenses General,Strategy Directorate,Hayleigh Bosher,1,"1,000.00",Not Applicable
Department for Business Energy and Industrial Strategy,Intellectual Property Office,12/12/2022,Supporting UK Business,PDTM Directorate,Exalt IP Limited,11222,"2,083.33",Not Applicable
Department for Business Energy and Industrial Strategy,Intellectual Property Office,16/12/2022,Marketing & Publicity,PDTM Directorate,RASB Media Ltd,INV-19480,"3,786.00",Not Applicable
Department for Business Energy and Industrial Strategy,Intellectual Property Office,30/12/2022,Supporting UK Business,PDTM Directorate,Jamieson Law Ltd,INV-1898,"2,500.00",Not Applicable
Department for Business Energy and Industrial Strategy,Intellectual Property Office,28/12/2022,Education Campaign,Strategy Directorate,Linkedin-858,H57720221230ypzpfgsdk,78.85,Not Applicable
Department for Business Energy and Industrial Strategy,Intellectual Property Office,26/12/2022,Books Newspaper Pub(central),Strategy Directorate,Amazon.Co.Uk,H57720221228qchrxmfeq,18.00,Not Applicable
Department for Business Energy and Industrial Strategy,Intellectual Property Office,24/12/2022,Education Campaign,Strategy Directorate,Linkedin 8581576824,H57720221227bvvvkxwpk,93.13,Not Applicable
Department for Business Energy and Industrial Strategy,Intellectual Property Office,26/12/2022,Education Campaign,Strategy Directorate,Facebk U9ztdlbbe2,H57720221227vbfouxspz,97.34,Not Applicable
Department for Business Energy and Industrial Strategy,Intellectual Property Office,22/12/2022,Books,DDaT Directorate,Amazon.Co.Uk,H57720221224mxfghlnue,20.98,Not Applicable
Department for Business Energy and Industrial Strategy,Intellectual Property Office,22/12/2022,Office Stationery,"Rights, Policy & Enforcement Directorate",Phs Group,H57720221224zicbiimfw,522.00,Not Applicable
Department for Business Energy and Industrial Strategy,Intellectual Property Office,21/12/2022,Office Stationery,"Rights, Policy & Enforcement Directorate",Healthy Workstations Ltd,H57720221223ywikmpqqc,5.94,Not Applicable
Department for Business Energy and Industrial Strategy,Intellectual Property Office,20/12/2022,Career Development Services,DDaT Directorate,Sp Scrum.Org,H57720221222hzabxvric,127.45,Not Applicable
Department for Business Energy and Industrial Strategy,Intellectual Property Office,20/12/2022,Software Maintenance,DDaT Directorate,Argos Ltd,H57720221222nuyggfzoq,99.46,Not Applicable
Department for Business Energy and Industrial Strategy,Intellectual Property Office,20/12/2022,Education Campaign,Strategy Directorate,Linkedin 8569648654,H57720221222xmejtaksr,72.78,Not Applicable
Department for Business Energy and Industrial Strategy,Intellectual Property Office,17/12/2022,Entertainment,"Rights, Policy & Enforcement Directorate",Epidemic Sound Ab,H57720221220dsvwusckb,46.80,Not Applicable
Department for Business Energy and Industrial Strategy,Intellectual Property Office,18/12/2022,Office Stationery,"Rights, Policy & Enforcement Directorate",Amznmktplace,H57720221220lfcruijdt,125.93,Not Applicable
Department for Business Energy and Industrial Strategy,Intellectual Property Office,18/12/2022,Entertainment,"Rights, Policy & Enforcement Directorate",Amazon.Co.Uk,H57720221220lsghslrpp,234.95,Not Applicable
Department for Business Energy and Industrial Strategy,Intellectual Property Office,18/12/2022,Office Stationery,"Rights, Policy & Enforcement Directorate",Amazon.Co.Uk,H57720221220msjpppvro,11.06,Not Applicable
Department for Business Energy and Industrial Strategy,Intellectual Property Office,16/12/2022,Books,DDaT Directorate,Amazon.Co.Uk,H57720221220pnpohifrp,37.99,Not Applicable
Department for Business Energy and Industrial Strategy,Intellectual Property Office,17/12/2022,Books,DDaT Directorate,Amazon.Co.Uk,H57720221220qdonwarvi,41.78,Not Applicable
Department for Business Energy and Industrial Strategy,Intellectual Property Office,15/12/2022,Office Stationery,"Rights, Policy & Enforcement Directorate",Www.Photospecialist.C,H57720221217dsedktjlo,804.95,Not Applicable
Department for Business Energy and Industrial Strategy,Intellectual Property Office,15/12/2022,Perpetual Licences,DDaT Directorate,Sapien Technologies,H57720221217wcuhsdlcv,416.34,Not Applicable
Department for Business Energy and Industrial Strategy,Intellectual Property Office,14/12/2022,Education Campaign,Strategy Directorate,Linkedin 8553735314,H57720221216cjxguwrpd,13.11,Not Applicable
Department for Business Energy and Industrial Strategy,Intellectual Property Office,14/12/2022,Network and infrastructure H/W,"Rights, Policy & Enforcement Directorate",Asda Superstore 4928,H57720221216grsmkyicy,4.50,Not Applicable
Department for Business Energy and Industrial Strategy,Intellectual Property Office,14/12/2022,Network and infrastructure H/W,"Rights, Policy & Enforcement Directorate",Asda Superstore 4928,H57720221216hakpjdfll,16.20,Not Applicable
Department for Business Energy and Industrial Strategy,Intellectual Property Office,14/12/2022,Seminars and Confereces,CEO/SEC Directorate,Heathrow Airport,H57720221216npcbovkrd,23.30,Not Applicable
Department for Business Energy and Industrial Strategy,Intellectual Property Office,14/12/2022,Education Campaign,PDTM Directorate,Ges Limited,H57720221216pngpidlah,233.04,Not Applicable
Department for Business Energy and Industrial Strategy,Intellectual Property Office,14/12/2022,Education Campaign,PDTM Directorate,Ges Limited,H57720221216xuiqxznxk,827.37,Not Applicable
Department for Business Energy and Industrial Strategy,Intellectual Property Office,12/12/2022,Minor Works-Goods,"Rights, Policy & Enforcement Directorate",Newey & Eyre,H57720221215hhwsyjcnz,51.56,Not Applicable
Department for Business Energy and Industrial Strategy,Intellectual Property Office,13/12/2022,Office Stationery,"Rights, Policy & Enforcement Directorate",Solenoid Valve World,H57720221215krjkuivhs,204.18,Not Applicable
Department for Business Energy and Industrial Strategy,Intellectual Property Office,13/12/2022,Perpetual Licences,DDaT Directorate,Textanywhere,H57720221215ofkqtrwmi,552.00,Not Applicable
Department for Business Energy and Industrial Strategy,Intellectual Property Office,13/12/2022,Network and infrastructure H/W,"Rights, Policy & Enforcement Directorate",Home Bargains,H57720221215xylyvnmgg,66.38,Not Applicable
Department for Business Energy and Industrial Strategy,Intellectual Property Office,12/12/2022,Education Campaign,PDTM Directorate,Visit Connect,H57720221214tnehbmgvl,309.60,Not Applicable
Department for Business Energy and Industrial Strategy,Intellectual Property Office,12/12/2022,Office Stationery,"Rights, Policy & Enforcement Directorate",Www.Rainbowsafetey.Co.Uk,H57720221214ufffoxltw,120.82,Not Applicable
Department for Business Energy and Industrial Strategy,Intellectual Property Office,10/12/2022,Career Development Services,"Rights, Policy & Enforcement Directorate",Amznmktplace,H57720221213bhvahvukm,68.36,Not Applicable
Department for Business Energy and Industrial Strategy,Intellectual Property Office,11/12/2022,Office Stationery,"Rights, Policy & Enforcement Directorate",Amazon.Co.Uk,H57720221213cjgfjcglu,37.99,Not Applicable
Department for Business Energy and Industrial Strategy,Intellectual Property Office,10/12/2022,Legal Consultancy,DDaT Directorate,Ipo,H57720221213ianetnsna,5.00,Not Applicable
Department for Business Energy and Industrial Strategy,Intellectual Property Office,11/12/2022,Office Stationery,"Rights, Policy & Enforcement Directorate",Amznmktplace,H57720221213qikzwiawy,57.43,Not Applicable
Department for Business Energy and Industrial Strategy,Intellectual Property Office,10/12/2022,Legal Consultancy,DDaT Directorate,Ipo,H57720221213rvbeqvxlb,30.00,Not Applicable
Department for Business Energy and Industrial Strategy,Intellectual Property Office,08/12/2022,Office Stationery,"Rights, Policy & Enforcement Directorate",South Wales Suppliers Lim,H57720221210bhkgqrjln,793.19,Not Applicable
Department for Business Energy and Industrial Strategy,Intellectual Property Office,08/12/2022,Office Stationery,"Rights, Policy & Enforcement Directorate",Amznmktplace,H57720221210djqfgobbt,24.98,Not Applicable
Department for Business Energy and Industrial Strategy,Intellectual Property Office,08/12/2022,Office Stationery,"Rights, Policy & Enforcement Directorate",Industrial Protect,H57720221210fpabnotdo,169.26,Not Applicable
Department for Business Energy and Industrial Strategy,Intellectual Property Office,08/12/2022,Office Stationery,"Rights, Policy & Enforcement Directorate",Amznmktplace,H57720221210jpvqwmpre,17.98,Not Applicable
Department for Business Energy and Industrial Strategy,Intellectual Property Office,07/12/2022,Minor Works-Goods,"Rights, Policy & Enforcement Directorate",Amznmktplace,H57720221209dtcpudjyd,44.89,Not Applicable
Department for Business Energy and Industrial Strategy,Intellectual Property Office,07/12/2022,Office Stationery,"Rights, Policy & Enforcement Directorate",Phs Group,H57720221209elgohbdfb,57.60,Not Applicable
Department for Business Energy and Industrial Strategy,Intellectual Property Office,07/12/2022,Office Stationery,"Rights, Policy & Enforcement Directorate",Amznmktplace,H57720221209gfpudxebg,35.98,Not Applicable
Department for Business Energy and Industrial Strategy,Intellectual Property Office,07/12/2022,Career Development Services,"Rights, Policy & Enforcement Directorate",Office For National St,H57720221209jftgfikkv,2.55,Not Applicable
Department for Business Energy and Industrial Strategy,Intellectual Property Office,07/12/2022,Minor Works-Goods,"Rights, Policy & Enforcement Directorate",Towergate Prof. Risks,H57720221209kaiwmmonu,325.34,Not Applicable
Department for Business Energy and Industrial Strategy,Intellectual Property Office,17/11/2022,Office Stationery,"Rights, Policy & Enforcement Directorate",British Red Cross Soci,H57720221209pnrbykorv,-166.80,Not Applicable
Department for Business Energy and Industrial Strategy,Intellectual Property Office,07/12/2022,Minor Works-Goods,"Rights, Policy & Enforcement Directorate",Amznmktplace,H57720221209ubwvnyutg,3.49,Not Applicable
Department for Business Energy and Industrial Strategy,Intellectual Property Office,08/12/2022,Education Campaign,Strategy Directorate,Facebk Fnqq5lpae2,H57720221209xwohmyljy,100.00,Not Applicable
Department for Business Energy and Industrial Strategy,Intellectual Property Office,07/12/2022,Office Stationery,"Rights, Policy & Enforcement Directorate",Audio Installations,H57720221209zuotcqboo,339.84,Not Applicable
Department for Business Energy and Industrial Strategy,Intellectual Property Office,06/12/2022,Network and infrastructure H/W,"Rights, Policy & Enforcement Directorate",Lidl Gb,H57720221208bgscnzrli,4.70,Not Applicable
Department for Business Energy and Industrial Strategy,Intellectual Property Office,06/12/2022,Office Stationery,"Rights, Policy & Enforcement Directorate",Www.Screwfix.Com,H57720221208mevxchads,54.98,Not Applicable
Department for Business Energy and Industrial Strategy,Intellectual Property Office,06/12/2022,Office Stationery,"Rights, Policy & Enforcement Directorate","Tradesparky Ltd, Stone",H57720221208rtksgisiw,213.64,Not Applicable
Department for Business Energy and Industrial Strategy,Intellectual Property Office,06/12/2022,Entertainment,"Rights, Policy & Enforcement Directorate",Asda Superstore 4928,H57720221208wegbehrnp,2.45,Not Applicable
Department for Business Energy and Industrial Strategy,Intellectual Property Office,05/12/2022,Office Stationery,"Rights, Policy & Enforcement Directorate",Amazon.Co.Uk,H57720221207dlraonuxc,78.66,Not Applicable
Department for Business Energy and Industrial Strategy,Intellectual Property Office,05/12/2022,Office Stationery,"Rights, Policy & Enforcement Directorate",Sja Supplies Training Cou,H57720221207moyeonsuv,198.00,Not Applicable
Department for Business Energy and Industrial Strategy,Intellectual Property Office,05/12/2022,Office Stationery,"Rights, Policy & Enforcement Directorate",Tesco-Stores 6459,H57720221207txrqquzif,9.50,Not Applicable
Department for Business Energy and Industrial Strategy,Intellectual Property Office,05/12/2022,Network and infrastructure H/W,"Rights, Policy & Enforcement Directorate",B&m 607 - Newport,H57720221207yjawthlwt,25.50,Not Applicable
Department for Business Energy and Industrial Strategy,Intellectual Property Office,05/12/2022,Network and infrastructure H/W,"Rights, Policy & Enforcement Directorate",B&m 607 - Newport,H57720221207ztkntzzlx,53.00,Not Applicable
Department for Business Energy and Industrial Strategy,Intellectual Property Office,04/12/2022,Career Development Services,"Rights, Policy & Enforcement Directorate",Amazon.Co.Uk,H57720221206egcurebxx,42.89,Not Applicable
Department for Business Energy and Industrial Strategy,Intellectual Property Office,16/11/2022,Legal Consultancy,DDaT Directorate,Ipo,H57720221206ftmaqpsed,-50.00,Not Applicable
Department for Business Energy and Industrial Strategy,Intellectual Property Office,02/12/2022,Office Stationery,"Rights, Policy & Enforcement Directorate",Amznmktplace,H57720221206litpplxso,30.99,Not Applicable
Department for Business Energy and Industrial Strategy,Intellectual Property Office,28/11/2022,Legal Consultancy,DDaT Directorate,Ipo,H57720221206mhyimkpoy,-170.00,Not Applicable
Department for Business Energy and Industrial Strategy,Intellectual Property Office,24/11/2022,Legal Consultancy,DDaT Directorate,Ipo,H57720221206occktohtm,-50.00,Not Applicable
Department for Business Energy and Industrial Strategy,Intellectual Property Office,02/12/2022,Career Development Services,"Rights, Policy & Enforcement Directorate",Asda Superstore 4928,H57720221206qdhuxvicn,34.80,Not Applicable
Department for Business Energy and Industrial Strategy,Intellectual Property Office,03/12/2022,Education Campaign,Strategy Directorate,Facebk 98hhhktae2,H57720221206slesrhdzs,100.00,Not Applicable
Department for Business Energy and Industrial Strategy,Intellectual Property Office,16/11/2022,Legal Consultancy,DDaT Directorate,Ipo,H57720221206tifebzwre,-170.00,Not Applicable
Department for Business Energy and Industrial Strategy,Intellectual Property Office,04/12/2022,Office Stationery,"Rights, Policy & Enforcement Directorate",Amz,H57720221206wraoaqxgi,-24.99,Not Applicable
Department for Business Energy and Industrial Strategy,Intellectual Property Office,01/12/2022,Office Stationery,"Rights, Policy & Enforcement Directorate",Tcgroupltd,H57720221203ceavucdii,253.20,Not Applicable
Department for Business Energy and Industrial Strategy,Intellectual Property Office,19/11/2022,Legal Consultancy,DDaT Directorate,Ipo,H57720221203dtprryfdw,-170.00,Not Applicable
Department for Business Energy and Industrial Strategy,Intellectual Property Office,12/11/2022,Legal Consultancy,DDaT Directorate,Ipo,H57720221203emszxqjyp,-5.00,Not Applicable
Department for Business Energy and Industrial Strategy,Intellectual Property Office,01/12/2022,Books,DDaT Directorate,Amznmktplace,H57720221203fmrntsnxe,67.84,Not Applicable
Department for Business Energy and Industrial Strategy,Intellectual Property Office,01/12/2022,Career Development Services,"Rights, Policy & Enforcement Directorate",Amazon.Co.Uk,H57720221203hiqnbmvlw,42.89,Not Applicable
Department for Business Energy and Industrial Strategy,Intellectual Property Office,12/11/2022,Legal Consultancy,DDaT Directorate,Ipo,H57720221203kvedfodqo,-30.00,Not Applicable
Department for Business Energy and Industrial Strategy,Intellectual Property Office,01/12/2022,Minor Works-Goods,"Rights, Policy & Enforcement Directorate",Toolstation Uk,H57720221203lsgfdvusu,89.80,Not Applicable
Department for Business Energy and Industrial Strategy,Intellectual Property Office,01/12/2022,Career Development Services,"Rights, Policy & Enforcement Directorate",The Myersbriggs Company L,H57720221203mrxgkmqwp,940.50,Not Applicable
Department for Business Energy and Industrial Strategy,Intellectual Property Office,13/11/2022,Legal Consultancy,DDaT Directorate,Ipo,H57720221203nyilffwyo,-5.00,Not Applicable
Department for Business Energy and Industrial Strategy,Intellectual Property Office,13/11/2022,Legal Consultancy,DDaT Directorate,Ipo,H57720221203uiascbhbs,-30.00,Not Applicable
Department for Business Energy and Industrial Strategy,Intellectual Property Office,01/12/2022,Education Campaign,Strategy Directorate,Linkedin-851,H57720221203ujyykerjn,53.56,Not Applicable
Department for Business Energy and Industrial Strategy,Intellectual Property Office,01/12/2022,Minor Works-Goods,"Rights, Policy & Enforcement Directorate",Water Gardening Direct Li,H57720221203xittvuhsk,35.38,Not Applicable
Department for Business Energy and Industrial Strategy,Intellectual Property Office,19/11/2022,Legal Consultancy,DDaT Directorate,Ipo,H57720221203yfihhdssz,-170.00,Not Applicable
Department for Business Energy and Industrial Strategy,Intellectual Property Office,30/11/2022,Office Stationery,"Rights, Policy & Enforcement Directorate",Amz,H57720221202bhoundhzk,-106.64,Not Applicable
Department for Business Energy and Industrial Strategy,Intellectual Property Office,30/11/2022,Office Stationery,"Rights, Policy & Enforcement Directorate",Boards Direct,H57720221202daussskxn,753.60,Not Applicable
Department for Business Energy and Industrial Strategy,Intellectual Property Office,30/11/2022,Seminars and Confereces,CEO/SEC Directorate,Heathrow Airport,H57720221202edwkgigwf,84.30,Not Applicable
Department for Business Energy and Industrial Strategy,Intellectual Property Office,30/11/2022,Entertainment,"Rights, Policy & Enforcement Directorate",Asda Superstore 4928,H57720221202xrhdbbtmp,1.90,Not Applicable
